Workbook

Sheet Brokerage Fees by Brokers team (hidden)
A1: ="Summary of Brokerage Fee for " & YEAR(ValueDate) & " by Team" -> Summary of Brokerage Fee for 2017 by Team
A3: Broker | B3: Team | C3: 2016-01-01 | D3: 2016-02-01 | E3: 2016-03-01 | F3: 2016-04-01 | G3: 2016-05-01 | H3: 2016-06-01 | I3: 2016-07-01 | J3: 2016-08-01 | K3: 2016-09-01 | L3: 2016-10-01 | M3: 2016-11-01 | N3: 2016-12-01 | O3: YTD 2016 | P3: %
A5: Affin Hwang Investment Bank Berhad | B5: Abdul Hadzi Marzuki | J5: 0 | K5: 0 | L5: 0 | M5: 0 | N5: 0 | O5: =SUM(C5:N5) -> 0 | P5: =O5/$O$50*100 -> 
A6: Affin Hwang Investment Bank Berhad | B6: Khairul Suffian Khalid | J6: 0 | K6: 0 | L6: 0 | M6: 0 | N6: 0 | O6: =SUM(C6:N6) -> 0
A8: Alliance Investment Bank Berhad | B8: Syedi Bin Aripen | J8: 0 | K8: 0 | L8: 0 | M8: 0 | N8: 0 | O8: =SUM(C8:N8) -> 0 | P8: =O8/$O$50*100 -> 
A10: AmInvestment Bank Bhd | J10: 0 | K10: 0 | L10: 0 | M10: 0 | N10: 0 | O10: =SUM(C10:N10) -> 0 | P10: =O10/$O$50*100 -> 
A11: AmInvestment Bank Bhd | J11: 0 | K11: 0 | L11: 0 | M11: 0 | N11: 0 | O11: =SUM(C11:N11) -> 0 | P11: =O11/$O$50*100 -> 
A13: BIMB Securities Bhd | J13: 0 | K13: 0 | L13: 0 | M13: 0 | N13: 0 | O13: =SUM(C13:N13) -> 0 | P13: =O13/$O$50*100 -> 
A15: CIMB Investment Bank Bhd | J15: 0 | K15: 0 | L15: 0 | M15: 0 | N15: 0 | O15: =SUM(C15:N15) -> 0 | P15: =O15/$O$50*100 -> 
A17: Credit Suisse Securities (M) Bhd | J17: 0 | K17: 0 | L17: 0 | M17: 0 | N17: 0 | O17: =SUM(C17:N17) -> 0 | P17: =O17/$O$50*100 -> 
A19: Hong Leong Investment Bank Berhad | J19: 0 | K19: 0 | L19: 0 | N19: 0 | O19: =SUM(C19:N19) -> 0 | P19: =O19/$O$50*100 -> 
A21: JP Morgan Sec (M) Sdn Bhd | J21: 0 | K21: 0 | L21: 0 | M21: 0 | N21: 0 | O21: =SUM(C21:N21) -> 0 | P21: =O21/$O$50*100 -> 
A23: KAF-Seagroatt & Campbell Securities Sdn Bhd | J23: 0 | K23: 0 | L23: 0 | M23: 0 | N23: 0 | O23: =SUM(C23:N23) -> 0 | P23: =O23/$O$50*100 -> 
A24: KAF-Seagroatt & Campbell Securities Sdn Bhd | J24: 0 | K24: 0 | L24: 0 | M24: 0 | N24: 0 | O24: =SUM(C24:N24) -> 0 | P24: =O24/$O$50*100 -> 
A26: Kenanga Investment Bank Bhd | J26: 0 | K26: 0 | L26: 0 | M26: 0 | N26: 0 | O26: =SUM(C26:N26) -> 0 | P26: =O26/$O$50*100 -> 
A28: Macquarie Capital Securities | J28: 0 | K28: 0 | L28: 0 | M28: 0 | N28: 0 | O28: =SUM(C28:N28) -> 0 | P28: =O28/$O$50*100 -> 
A29: Macquarie Capital Securities | J29: 0 | K29: 0 | L29: 0 | M29: 0 | N29: 0 | O29: =SUM(C29:N29) -> 0 | P29: =O29/$O$50*100 -> 
A30: Macquarie Capital Securities | J30: 0 | K30: 0 | L30: 0 | M30: 0 | N30: 0 | O30: =SUM(C30:N30) -> 0 | P30: =O30/$O$50*100 -> 
A32: Maybank Invesment Bank Berhad | J32: 0 | K32: 0 | L32: 0 | M32: 0 | N32: 0 | O32: =SUM(C32:N32) -> 0 | P32: =O32/$O$50*100 -> 
A33: Maybank Invesment Bank Berhad | J33: 0 | K33: 0 | L33: 0 | M33: 0 | N33: 0 | O33: =SUM(C33:N33) -> 0 | P33: =O33/$O$50*100 -> 
A35: MIDF Amanah Investment Bank | J35: 0 | K35: 0 | L35: 0 | M35: 0 | N35: 0 | O35: =SUM(C35:N35) -> 0 | P35: =O35/$O$50*100 -> 
A37: Nomura Sec Malaysia Sdn Bhd | J37: 0 | K37: 0 | L37: 0 | M37: 0 | N37: 0 | O37: =SUM(C37:N37) -> 0 | P37: =O37/$O$50*100 -> 
A39: Public Investment Bank Berhad | J39: 0 | K39: 0 | L39: 0 | M39: 0 | N39: 0 | O39: =SUM(C39:N39) -> 0 | P39: =O39/$O$50*100 -> 
A40: Public Investment Bank Berhad | J40: 0 | K40: 0 | L40: 0 | M40: 0 | N40: 0 | O40: =SUM(C40:N40) -> 0 | P40: =O40/$O$50*100 -> 
A42: RHB Investment Bank Bhd | J42: 0 | K42: 0 | L42: 0 | M42: 0 | N42: 0 | O42: =SUM(C42:N42) -> 0 | P42: =O42/$O$50*100 -> 
A43: RHB Investment Bank Bhd | J43: 0 | K43: 0 | L43: 0 | M43: 0 | N43: 0 | O43: =SUM(C43:N43) -> 0 | P43: =O43/$O$50*100 -> 
A44: RHB Investment Bank Bhd | J44: 0 | K44: 0 | L44: 0 | M44: 0 | N44: 0 | O44: =SUM(C44:N44) -> 0 | P44: =O44/$O$50*100 -> 
A46: TA Securities Holdings Bhd | J46: 0 | K46: 0 | L46: 0 | M46: 0 | N46: 0 | O46: =SUM(C46:N46) -> 0 | P46: =O46/$O$50*100 -> 
A48: UBS Securities Malaysia Bhd | J48: 0 | K48: 0 | L48: 0 | M48: 0 | N48: 0 | O48: =SUM(C48:N48) -> 0 | P48: =O48/$O$50*100 -> 
A50: TOTAL | C50: =SUM(C5:C49) -> 0 | D50: =SUM(D5:D49) -> 0 | E50: =SUM(E5:E48) -> 0 | F50: =SUM(F5:F48) -> 0 | G50: =SUM(G5:G48) -> 0 | H50: =SUM(H5:H49) -> 0 | I50: =SUM(I5:I48) -> 0 | J50: =SUM(J5:J49) -> 0 | K50: 0 | L50: 0 | M50: 0 | N50: 0 | O50: 0
D58: =EXP(LN(10)/100)-1 -> 0.02329299228

Sheet Main
B2: VALUECAP | C2: Equity Settlement Reports
F4: * Please sheet(s) to print
B5: * Step 1 : Connect to Server | F5: Sheet | G5: YES/NO
F6: Brokerage Fees by Brokers | G6: NO
F7: Trade Allocation by Brokers | G7: NO
F8: Trade Allocation by PM | G8: NO
F9: Total Purchases & Sales by PM | G9: NO
F10: Total P&S by Portfolio | G10: NO
B11: * Step 2 : Change Only If Necessary
B13: Company : | C13: VALUECAP SDN. BHD.
B14: Start Date : | C14: 2017-01-01
B15: Value Date : | C15: 2017-11-30
B17: * Step 3 : Refresh Data
B23: * Step 4 : Print Report

Sheet InTranDist
A1: (Will not refresh) | B1: (Will not refresh) | D1: =COUNTA(A:A)-2 -> 6 | E1: =COUNTA(C:C)-1 -> 19
A2: DistinctDealer | B2: Dealer Name | C2: DistinctCPName | F2: qFundCode
A3: aishah | B3: NOR AISHAH SAAD | C3: AFFIN HWANG INVESTMENT BANK BERHAD | F3: CORE
A4: razimah | B4: RAZIMAH ABDUL RAZAK | C4: ALLIANCE INVESTMENT BANK BERHAD | F4: DIVIDEND
A5: ahmad | B5: AHMAD FIRDAUS | C5: AMINVESTMENT BANK BHD | F5: FUND
A6: anuar | B6: ANUAR HISHAM | C6: BIMB SECURITIES SDN BHD | F6: GROWTH
A7: faris | B7: MUHAMMAD FARIS | C7: CIMB INVESTMENT BANK BHD | F7: INDEX
A8: wei.rhong | B8: KHOR WEI RHONG | C8: CLSA SECURITIES MALAYSIA SDN BHD | F8: REITS
C9: CREDIT SUISSE SECURITIES (M) SDN BHD | F9: SMALLMIDCAP
C10: HONG LEONG INVESTMENT BANK BHD | F10: VALUE
C11: KAF-SEAGROATT & CAMPBELL SECURITIES SDN BHD
C12: KENANGA INVESTMENT BANK BHD
C13: MACQUARIE CAPITAL SECURITIES (MALAYSIA) SDN BHD
C14: MAYBANK INVESTMENT BANK
C15: MIDF AMANAH INVESTMENT BANK BHD
C16: NOMURA SECURITIES MALAYSIA SDN BHD
C17: PUBLIC INVESTMENT BANK BERHAD
C18: RHB INVESTMENT BANK BERHAD
C19: TA SECURITIES HOLDINGS BHD
C20: UBS SECURITIES MALAYSIA SDN BHD
C21: UOB KAY HIAN SECURITIES (M) SDN BHD

Sheet InATran (hidden)
A2: qEventTrxID | B2: qTrnCode | C2: qFundCode | D2: TradeDate | E2: valuedate | F2: qCPCode | G2: CPName | H2: SettCurrency | I2: qStockCode | J2: qIssuerCode | K2: ABSSCNetProceed | L2: BrokerageFee | M2: TranGains | N2: DealerKeyInBy | O2: DealerKeyInDate | P2: TrnTable | Q2: TradeDateMonth
A3: EQT*170100001 | B3: SS | C3: SMALLMIDCAP | D3: 2017-01-03 | E3: 2017-01-03 | F3: BR:RHBINV | G3: RHB INVESTMENT BANK BERHAD | H3: MYR | I3: 5073 | J3: NAIM | K3: 859487.26 | L3: 1939.54 | M3: -33278.57 | N3: razimah | O3: 2017-01-03T12:18:06 | P3: PosTrn | Q3: 1
A4: EQT*170100002 | B4: SP | C4: CORE | D4: 2017-01-03 | E4: 2017-01-03 | F4: BR:RHBINV | G4: RHB INVESTMENT BANK BERHAD | H4: MYR | I4: 4162 | J4: BAT | K4: 1341462.04 | L4: 2676 | M4: 0 | N4: aishah | O4: 2017-01-03T17:01:05 | P4: PosTrn | Q4: 1
A5: EQT*170100003 | B5: SS | C5: GROWTH | D5: 2017-01-03 | E5: 2017-01-03 | F5: BR:KAFSEC | G5: KAF-SEAGROATT & CAMPBELL SECURITIES SDN BHD | H5: MYR | I5: 4197 | J5: SIME | K5: 24418307.23 | L5: 17106.39 | M5: -91289.23 | N5: aishah | O5: 2017-01-03T17:02:34 | P5: PosTrn | Q5: 1
A6: EQT*170100005 | B6: SP | C6: REITS | D6: 2017-01-04 | E6: 2017-01-04 | F6: BR:MAYBANKINV | G6: MAYBANK INVESTMENT BANK | H6: MYR | I6: 5176 | J6: SUNREIT | K6: 5112071.72 | L6: 5105.4 | M6: 0 | N6: aishah | O6: 2017-01-04T12:07:42 | P6: PosTrn | Q6: 1
A7: EQT*170100007 | B7: SS | C7: GROWTH | D7: 2017-01-04 | E7: 2017-01-04 | F7: BR:KAFSEC | G7: KAF-SEAGROATT & CAMPBELL SECURITIES SDN BHD | H7: MYR | I7: 4197 | J7: SIME | K7: 21530826.55 | L7: 15083.65 | M7: -376441.55 | N7: aishah | O7: 2017-01-04T12:17:59 | P7: PosTrn | Q7: 1
A8: EQT*170100008 | B8: SP | C8: REITS | D8: 2017-01-04 | E8: 2017-01-04 | F8: BR:MAYBANKINV | G8: MAYBANK INVESTMENT BANK | H8: MYR | I8: 5121 | J8: HEKTAR | K8: 293311.66 | L8: 657.72 | M8: 0 | N8: aishah | O8: 2017-01-04T15:20:01 | P8: PosTrn | Q8: 1
A9: EQT*170100009 | B9: SP | C9: REITS | D9: 2017-01-04 | E9: 2017-01-04 | F9: BR:KAFSEC | G9: KAF-SEAGROATT & CAMPBELL SECURITIES SDN BHD | H9: MYR | I9: 5180 | J9: CMMT | K9: 3872456.3 | L9: 2707.83 | M9: 0 | N9: aishah | O9: 2017-01-04T15:42:00 | P9: PosTrn | Q9: 1
A10: EQT*170100011 | B10: SS | C10: GROWTH | D10: 2017-01-04 | E10: 2017-01-04 | F10: BR:RHBINV | G10: RHB INVESTMENT BANK BERHAD | H10: MYR | I10: 4197 | J10: SIME | K10: 6758606.94 | L10: 6767.04 | M10: -138293.21 | N10: aishah | O10: 2017-01-04T16:13:20 | P10: PosTrn | Q10: 1
A11: EQT*170100013 | B11: SP | C11: CORE | D11: 2017-01-04 | E11: 2017-01-04 | F11: BR:KAFSEC | G11: KAF-SEAGROATT & CAMPBELL SECURITIES SDN BHD | H11: MYR | I11: 4162 | J11: BAT | K11: 1004415.47 | L11: 702.21 | M11: 0 | N11: aishah | O11: 2017-01-04T16:39:44 | P11: PosTrn | Q11: 1
A12: EQT*170100014 | B12: SP | C12: REITS | D12: 2017-01-04 | E12: 2017-01-04 | F12: BR:MAYBANKINV | G12: MAYBANK INVESTMENT BANK | H12: MYR | I12: 5227 | J12: IGB | K12: 4929285.31 | L12: 9835.2 | M12: 0 | N12: aishah | O12: 2017-01-04T17:05:45 | P12: PosTrn | Q12: 1
A13: EQT*170100016 | B13: SS | C13: GROWTH | D13: 2017-01-05 | E13: 2017-01-05 | F13: BR:KAFSEC | G13: KAF-SEAGROATT & CAMPBELL SECURITIES SDN BHD | H13: MYR | I13: 4197 | J13: SIME | K13: 1246776.8 | L13: 873.81 | M13: -38569.54 | N13: razimah | O13: 2017-01-05T10:00:58 | P13: PosTrn | Q13: 1
A14: EQT*170100017 | B14: SP | C14: REITS | D14: 2017-01-05 | E14: 2017-01-05 | F14: BR:KAFSEC | G14: KAF-SEAGROATT & CAMPBELL SECURITIES SDN BHD | H14: MYR | I14: 5227 | J14: IGB | K14: 163335.78 | L14: 114.1 | M14: 0 | N14: razimah | O14: 2017-01-05T10:32:53 | P14: PosTrn | Q14: 1
A15: EQT*170100018 | B15: SS | C15: GROWTH | D15: 2017-01-05 | E15: 2017-01-05 | F15: BR:KAFSEC | G15: KAF-SEAGROATT & CAMPBELL SECURITIES SDN BHD | H15: MYR | I15: 2291 | J15: GENP | K15: 8856752.48 | L15: 6205.21 | M15: -153752.08 | N15: razimah | O15: 2017-01-05T15:33:41 | P15: PosTrn | Q15: 1
A16: EQT*170100019 | B16: SP | C16: REITS | D16: 2017-01-05 | E16: 2017-01-05 | F16: BR:CIMBINV | G16: CIMB INVESTMENT BANK BHD | H16: MYR | I16: 5120 | J16: AMFIRST | K16: 211693.03 | L16: 474.58 | M16: 0 | N16: aishah | O16: 2017-01-05T15:48:45 | P16: PosTrn | Q16: 1
A17: EQT*170100020 | B17: SP | C17: REITS | D17: 2017-01-05 | E17: 2017-01-05 | F17: BR:KAFSEC | G17: KAF-SEAGROATT & CAMPBELL SECURITIES SDN BHD | H17: MYR | I17: 5123 | J17: MQREIT | K17: 564253.27 | L17: 394.42 | M17: 0 | N17: razimah | O17: 2017-01-05T16:05:40 | P17: PosTrn | Q17: 1
A18: EQT*170100021 | B18: SP | C18: GROWTH | D18: 2017-01-05 | E18: 2017-01-05 | F18: BR:CIMBINV | G18: CIMB INVESTMENT BANK BHD | H18: MYR | I18: 8664 | J18: SPSETIA | K18: 223443.81 | L18: 500.94 | M18: 0 | N18: aishah | O18: 2017-01-05T16:11:48 | P18: PosTrn | Q18: 1
A19: EQT*170100023 | B19: SP | C19: REITS | D19: 2017-01-05 | E19: 2017-01-05 | F19: BR:CIMBINV | G19: CIMB INVESTMENT BANK BHD | H19: MYR | I19: 5123 | J19: MQREIT | K19: 3132818.75 | L19: 6250 | M19: 0 | N19: aishah | O19: 2017-01-05T16:56:06 | P19: PosTrn | Q19: 1
A20: EQT*170100026 | B20: SS | C20: GROWTH | D20: 2017-01-06 | E20: 2017-01-06 | F20: BR:KAFSEC | G20: KAF-SEAGROATT & CAMPBELL SECURITIES SDN BHD | H20: MYR | I20: 4197 | J20: SIME | K20: 11106661.8 | L20: 7781.32 | M20: -348651.98 | N20: aishah | O20: 2017-01-06T09:40:06 | P20: PosTrn | Q20: 1
A21: EQT*170100030 | B21: SS | C21: GROWTH | D21: 2017-01-06 | E21: 2017-01-06 | F21: BR:KAFSEC | G21: KAF-SEAGROATT & CAMPBELL SECURITIES SDN BHD | H21: MYR | I21: 2291 | J21: GENP | K21: 2192922.52 | L21: 1536.81 | M21: -37531.9 | N21: razimah | O21: 2017-01-06T09:49:29 | P21: PosTrn | Q21: 1
A22: EQT*170100031 | B22: SS | C22: GROWTH | D22: 2017-01-06 | E22: 2017-01-06 | F22: BR:KAFSEC | G22: KAF-SEAGROATT & CAMPBELL SECURITIES SDN BHD | H22: MYR | I22: 1961 | J22: IOICORP | K22: 355822.21 | L22: 249.48 | M22: -6390.86 | N22: razimah | O22: 2017-01-06T09:52:49 | P22: PosTrn | Q22: 1
A23: EQT*170100032 | B23: SP | C23: GROWTH | D23: 2017-01-06 | E23: 2017-01-06 | F23: BR:KAFSEC | G23: KAF-SEAGROATT & CAMPBELL SECURITIES SDN BHD | H23: MYR | I23: 8664 | J23: SPSETIA | K23: 638876.28 | L23: 446.6 | M23: 0 | N23: aishah | O23: 2017-01-06T09:55:42 | P23: PosTrn | Q23: 1
A24: EQT*170100035 | B24: SP | C24: REITS | D24: 2017-01-06 | E24: 2017-01-06 | F24: BR:KAFSEC | G24: KAF-SEAGROATT & CAMPBELL SECURITIES SDN BHD | H24: MYR | I24: 5180 | J24: CMMT | K24: 1714164.89 | L24: 1198.51 | M24: 0 | N24: aishah | O24: 2017-01-06T16:26:59 | P24: PosTrn | Q24: 1
A25: EQT*170100036 | B25: SP | C25: REITS | D25: 2017-01-06 | E25: 2017-01-06 | F25: BR:CIMBINV | G25: CIMB INVESTMENT BANK BHD | H25: MYR | I25: 5123 | J25: MQREIT | K25: 1126769.9 | L25: 2247.66 | M25: 0 | N25: aishah | O25: 2017-01-06T16:33:27 | P25: PosTrn | Q25: 1
A26: EQT*170100037 | B26: SS | C26: GROWTH | D26: 2017-01-09 | E26: 2017-01-09 | F26: BR:CIMBINV | G26: CIMB INVESTMENT BANK BHD | H26: MYR | I26: 4197 | J26: SIME | K26: 55368.78 | L26: 125.04 | M26: -1578.73 | N26: aishah | O26: 2017-01-09T12:19:19 | P26: PosTrn | Q26: 1
A27: EQT*170100038 | B27: SP | C27: REITS | D27: 2017-01-09 | E27: 2017-01-09 | F27: BR:CIMBINV | G27: CIMB INVESTMENT BANK BHD | H27: MYR | I27: 5180 | J27: CMMT | K27: 213854.13 | L27: 479.43 | M27: 0 | N27: aishah | O27: 2017-01-09T16:08:06 | P27: PosTrn | Q27: 1
A28: EQT*170100040 | B28: SP | C28: REITS | D28: 2017-01-09 | E28: 2017-01-09 | F28: BR:CIMBINV | G28: CIMB INVESTMENT BANK BHD | H28: MYR | I28: 5227 | J28: IGB | K28: 4957545.1 | L28: 9891.6 | M28: 0 | N28: aishah | O28: 2017-01-09T16:08:53 | P28: PosTrn | Q28: 1
A29: EQT*170100041 | B29: SP | C29: REITS | D29: 2017-01-09 | E29: 2017-01-09 | F29: BR:CIMBINV | G29: CIMB INVESTMENT BANK BHD | H29: MYR | I29: 5121 | J29: HEKTAR | K29: 78851.35 | L29: 176.76 | M29: 0 | N29: aishah | O29: 2017-01-09T16:09:23 | P29: PosTrn | Q29: 1
A30: EQT*170100042 | B30: SP | C30: REITS | D30: 2017-01-09 | E30: 2017-01-09 | F30: BR:MAYBANKINV | G30: MAYBANK INVESTMENT BANK | H30: MYR | I30: 5120 | J30: AMFIRST | K30: 174285.1 | L30: 390.69 | M30: 0 | N30: aishah | O30: 2017-01-09T16:10:46 | P30: PosTrn | Q30: 1
A31: EQT*170100044 | B31: SP | C31: REITS | D31: 2017-01-09 | E31: 2017-01-09 | F31: BR:MAYBANKINV | G31: MAYBANK INVESTMENT BANK | H31: MYR | I31: 5109 | J31: YTLREIT | K31: 1390300.83 | L31: 2773.44 | M31: 0 | N31: aishah | O31: 2017-01-09T16:12:17 | P31: PosTrn | Q31: 1
A32: EQT*170100045 | B32: SP | C32: REITS | D32: 2017-01-09 | E32: 2017-01-09 | F32: BR:MAYBANKINV | G32: MAYBANK INVESTMENT BANK | H32: MYR | I32: 5227 | J32: IGB | K32: 4526578.79 | L32: 9031.49 | M32: 0 | N32: aishah | O32: 2017-01-09T16:18:43 | P32: PosTrn | Q32: 1
A33: EQT*170100046 | B33: SP | C33: REITS | D33: 2017-01-10 | E33: 2017-01-10 | F33: BR:MACQUARIE | G33: MACQUARIE CAPITAL SECURITIES (MALAYSIA) SDN BHD | H33: MYR | I33: 5180 | J33: CMMT | K33: 3159082.62 | L33: 6302.4 | M33: 0 | N33: aishah | O33: 2017-01-10T09:47:40 | P33: PosTrn | Q33: 1
A34: EQT*170100047 | B34: SP | C34: REITS | D34: 2017-01-10 | E34: 2017-01-10 | F34: BR:MACQUARIE | G34: MACQUARIE CAPITAL SECURITIES (MALAYSIA) SDN BHD | H34: MYR | I34: 5121 | J34: HEKTAR | K34: 70731.49 | L34: 158.56 | M34: 0 | N34: aishah | O34: 2017-01-10T09:48:59 | P34: PosTrn | Q34: 1
A35: EQT*170100048 | B35: SP | C35: REITS | D35: 2017-01-10 | E35: 2017-01-10 | F35: BR:MACQUARIE | G35: MACQUARIE CAPITAL SECURITIES (MALAYSIA) SDN BHD | H35: MYR | I35: 5227 | J35: IGB | K35: 2735867.09 | L35: 5458.03 | M35: 0 | N35: aishah | O35: 2017-01-10T09:49:20 | P35: PosTrn | Q35: 1
A36: EQT*170100049 | B36: SP | C36: REITS | D36: 2017-01-10 | E36: 2017-01-10 | F36: BR:MACQUARIE | G36: MACQUARIE CAPITAL SECURITIES (MALAYSIA) SDN BHD | H36: MYR | I36: 5120 | J36: AMFIRST | K36: 222627.82 | L36: 499.11 | M36: 0 | N36: aishah | O36: 2017-01-10T09:49:44 | P36: PosTrn | Q36: 1
A37: EQT*170100050 | B37: SS | C37: GROWTH | D37: 2017-01-10 | E37: 2017-01-10 | F37: BR:MACQUARIE | G37: MACQUARIE CAPITAL SECURITIES (MALAYSIA) SDN BHD | H37: MYR | I37: 4197 | J37: SIME | K37: 16871835.54 | L37: 16891 | M37: -321051.21 | N37: aishah | O37: 2017-01-10T09:50:04 | P37: PosTrn | Q37: 1
A38: EQT*170100052 | B38: SP | C38: REITS | D38: 2017-01-10 | E38: 2017-01-10 | F38: BR:CIMBINV | G38: CIMB INVESTMENT BANK BHD | H38: MYR | I38: 5121 | J38: HEKTAR | K38: 1624149.56 | L38: 3240 | M38: 0 | N38: faris | O38: 2017-01-10T10:17:50 | P38: PosTrn | Q38: 1
A39: EQT*170100053 | B39: SP | C39: REITS | D39: 2017-01-10 | E39: 2017-01-10 | F39: BR:CIMBINV | G39: CIMB INVESTMENT BANK BHD | H39: MYR | I39: 5109 | J39: YTLREIT | K39: 3488637.6 | L39: 6960 | M39: 0 | N39: aishah | O39: 2017-01-10T10:53:33 | P39: PosTrn | Q39: 1
A40: EQT*170100055 | B40: SP | C40: REITS | D40: 2017-01-10 | E40: 2017-01-10 | F40: BR:CIMBINV | G40: CIMB INVESTMENT BANK BHD | H40: MYR | I40: 5110 | J40: UOAREIT | K40: 5226793.2 | L40: 5220 | M40: 0 | N40: aishah | O40: 2017-01-10T11:53:12 | P40: PosTrn | Q40: 1
A41: EQT*170100056 | B41: SP | C41: GROWTH | D41: 2017-01-10 | E41: 2017-01-10 | F41: BR:TASEC | G41: TA SECURITIES HOLDINGS BHD | H41: MYR | I41: 8664 | J41: SPSETIA | K41: 6408044 | L41: 6400 | M41: 0 | N41: aishah | O41: 2017-01-10T15:46:39 | P41: PosTrn | Q41: 1
A42: EQT*170100058 | B42: SS | C42: GROWTH | D42: 2017-01-11 | E42: 2017-01-11 | F42: BR:MAYBANKINV | G42: MAYBANK INVESTMENT BANK | H42: MYR | I42: 4197 | J42: SIME | K42: 13040051.54 | L42: 13055.15 | M42: -329876.71 | N42: aishah | O42: 2017-01-11T09:18:40 | P42: PosTrn | Q42: 1
A43: EQT*170100059 | B43: SP | C43: REITS | D43: 2017-01-11 | E43: 2017-01-11 | F43: BR:CIMBINV | G43: CIMB INVESTMENT BANK BHD | H43: MYR | I43: 5121 | J43: HEKTAR | K43: 162258.97 | L43: 363.74 | M43: 0 | N43: aishah | O43: 2017-01-11T14:59:40 | P43: PosTrn | Q43: 1
A44: EQT*170100060 | B44: SP | C44: REITS | D44: 2017-01-11 | E44: 2017-01-11 | F44: BR:CIMBINV | G44: CIMB INVESTMENT BANK BHD | H44: MYR | I44: 5123 | J44: MQREIT | K44: 662448.88 | L44: 1486.04 | M44: 0 | N44: aishah | O44: 2017-01-11T15:00:12 | P44: PosTrn | Q44: 1
A45: EQT*170100061 | B45: SP | C45: REITS | D45: 2017-01-11 | E45: 2017-01-11 | F45: BR:CIMBINV | G45: CIMB INVESTMENT BANK BHD | H45: MYR | I45: 5227 | J45: IGB | K45: 1694320.22 | L45: 3380 | M45: 0 | N45: aishah | O45: 2017-01-11T15:00:40 | P45: PosTrn | Q45: 1
A46: EQT*170100062 | B46: SP | C46: REITS | D46: 2017-01-11 | E46: 2017-01-11 | F46: BR:CIMBINV | G46: CIMB INVESTMENT BANK BHD | H46: MYR | I46: 5180 | J46: CMMT | K46: 4811436 | L46: 9600 | M46: 0 | N46: aishah | O46: 2017-01-11T15:01:03 | P46: PosTrn | Q46: 1
A47: EQT*170100063 | B47: SP | C47: REITS | D47: 2017-01-11 | E47: 2017-01-11 | F47: BR:CIMBINV | G47: CIMB INVESTMENT BANK BHD | H47: MYR | I47: 5176 | J47: SUNREIT | K47: 1719381.17 | L47: 3430 | M47: 0 | N47: aishah | O47: 2017-01-11T15:01:29 | P47: PosTrn | Q47: 1
A48: EQT*170100064 | B48: SP | C48: REITS | D48: 2017-01-11 | E48: 2017-01-11 | F48: BR:CIMBINV | G48: CIMB INVESTMENT BANK BHD | H48: MYR | I48: 5120 | J48: AMFIRST | K48: 168253.37 | L48: 377.17 | M48: 0 | N48: aishah | O48: 2017-01-11T17:35:00 | P48: PosTrn | Q48: 1
A49: EQT*170100065 | B49: SS | C49: GROWTH | D49: 2017-01-12 | E49: 2017-01-12 | F49: BR:CIMBINV | G49: CIMB INVESTMENT BANK BHD | H49: MYR | I49: 4197 | J49: SIME | K49: 24357288.87 | L49: 24384.4 | M49: -695460.05 | N49: aishah | O49: 2017-01-12T09:19:22 | P49: PosTrn | Q49: 1
A50: EQT*170100066 | B50: SP | C50: REITS | D50: 2017-01-12 | E50: 2017-01-12 | F50: BR:CIMBINV | G50: CIMB INVESTMENT BANK BHD | H50: MYR | I50: 5180 | J50: CMMT | K50: 4170560.22 | L50: 8320.96 | M50: 0 | N50: aishah | O50: 2017-01-12T09:20:19 | P50: PosTrn | Q50: 1
A51: EQT*170100068 | B51: SP | C51: REITS | D51: 2017-01-12 | E51: 2017-01-12 | F51: BR:TASEC | G51: TA SECURITIES HOLDINGS BHD | H51: MYR | I51: 5123 | J51: MQREIT | K51: 880414.81 | L51: 1975.14 | M51: 0 | N51: ahmad | O51: 2017-01-12T09:49:01 | P51: PosTrn | Q51: 1
A52: EQT*170100070 | B52: SP | C52: GROWTH | D52: 2017-01-12 | E52: 2017-01-12 | F52: BR:TASEC | G52: TA SECURITIES HOLDINGS BHD | H52: MYR | I52: 8664 | J52: SPSETIA | K52: 7689400.8 | L52: 7680 | M52: 0 | N52: aishah | O52: 2017-01-12T10:56:41 | P52: PosTrn | Q52: 1
A53: EQT*170100071 | B53: SP | C53: REITS | D53: 2017-01-12 | E53: 2017-01-12 | F53: BR:CIMBINV | G53: CIMB INVESTMENT BANK BHD | H53: MYR | I53: 5123 | J53: MQREIT | K53: 2634490.79 | L53: 5255.77 | M53: 0 | N53: aishah | O53: 2017-01-12T17:46:57 | P53: PosTrn | Q53: 1
A54: EQT*170100072 | B54: SP | C54: REITS | D54: 2017-01-12 | E54: 2017-01-12 | F54: BR:CIMBINV | G54: CIMB INVESTMENT BANK BHD | H54: MYR | I54: 5120 | J54: AMFIRST | K54: 110473.31 | L54: 247.65 | M54: 0 | N54: aishah | O54: 2017-01-12T17:47:22 | P54: PosTrn | Q54: 1
A55: EQT*170100073 | B55: SP | C55: REITS | D55: 2017-01-12 | E55: 2017-01-12 | F55: BR:CIMBINV | G55: CIMB INVESTMENT BANK BHD | H55: MYR | I55: 5227 | J55: IGB | K55: 666501.15 | L55: 1495.14 | M55: 0 | N55: aishah | O55: 2017-01-12T17:47:45 | P55: PosTrn | Q55: 1
A56: EQT*170100074 | B56: SP | C56: REITS | D56: 2017-01-12 | E56: 2017-01-12 | F56: BR:CIMBINV | G56: CIMB INVESTMENT BANK BHD | H56: MYR | I56: 5110 | J56: UOAREIT | K56: 173637.01 | L56: 389.24 | M56: 0 | N56: aishah | O56: 2017-01-12T17:48:06 | P56: PosTrn | Q56: 1
A57: EQT*170100077 | B57: SP | C57: REITS | D57: 2017-01-13 | E57: 2017-01-13 | F57: BR:KAFSEC | G57: KAF-SEAGROATT & CAMPBELL SECURITIES SDN BHD | H57: MYR | I57: 5176 | J57: SUNREIT | K57: 156755.15 | L57: 351.4 | M57: 0 | N57: anuar | O57: 2017-01-13T11:22:38 | P57: PosTrn | Q57: 1
A58: EQT*170100078 | B58: SP | C58: REITS | D58: 2017-01-13 | E58: 2017-01-13 | F58: BR:KAFSEC | G58: KAF-SEAGROATT & CAMPBELL SECURITIES SDN BHD | H58: MYR | I58: 5116 | J58: ALAQAR | K58: 554694.76 | L58: 1244.25 | M58: 0 | N58: anuar | O58: 2017-01-13T11:23:10 | P58: PosTrn | Q58: 1
A59: EQT*170100079 | B59: SP | C59: REITS | D59: 2017-01-13 | E59: 2017-01-13 | F59: BR:CIMBINV | G59: CIMB INVESTMENT BANK BHD | H59: MYR | I59: 5110 | J59: UOAREIT | K59: 1774515.26 | L59: 3540 | M59: 0 | N59: aishah | O59: 2017-01-13T15:42:00 | P59: PosTrn | Q59: 1
A60: EQT*170100082 | B60: SP | C60: REITS | D60: 2017-01-16 | E60: 2017-01-16 | F60: BR:CIMBINV | G60: CIMB INVESTMENT BANK BHD | H60: MYR | I60: 5116 | J60: ALAQAR | K60: 3187952.84 | L60: 6360 | M60: 0 | N60: aishah | O60: 2017-01-16T15:38:27 | P60: PosTrn | Q60: 1
A61: EQT*170100083 | B61: SP | C61: REITS | D61: 2017-01-16 | E61: 2017-01-16 | F61: BR:CIMBINV | G61: CIMB INVESTMENT BANK BHD | H61: MYR | I61: 5110 | J61: UOAREIT | K61: 1774515.26 | L61: 3540 | M61: 0 | N61: aishah | O61: 2017-01-16T16:40:28 | P61: PosTrn | Q61: 1
A62: EQT*170100084 | B62: SP | C62: REITS | D62: 2017-01-16 | E62: 2017-01-16 | F62: BR:CIMBINV | G62: CIMB INVESTMENT BANK BHD | H62: MYR | I62: 5123 | J62: MQREIT | K62: 2566441.28 | L62: 5120 | M62: 0 | N62: aishah | O62: 2017-01-16T16:40:50 | P62: PosTrn | Q62: 1
A63: EQT*170100085 | B63: SP | C63: REITS | D63: 2017-01-16 | E63: 2017-01-16 | F63: BR:HLGINV | G63: HONG LEONG INVESTMENT BANK BHD | H63: MYR | I63: 5227 | J63: IGB | K63: 1135429.98 | L63: 2264.94 | M63: 0 | N63: aishah | O63: 2017-01-16T16:46:26 | P63: PosTrn | Q63: 1
A64: EQT*170100088 | B64: SP | C64: REITS | D64: 2017-01-17 | E64: 2017-01-17 | F64: BR:CIMBINV | G64: CIMB INVESTMENT BANK BHD | H64: MYR | I64: 5235SS | J64: KLCC | K64: 7819538.6 | L64: 7810 | M64: 0 | N64: faris | O64: 2017-01-17T09:49:23 | P64: PosTrn | Q64: 1
A65: EQT*170100089 | B65: SP | C65: REITS | D65: 2017-01-17 | E65: 2017-01-17 | F65: BR:KENANGAINV | G65: KENANGA INVESTMENT BANK BHD | H65: MYR | I65: 5227 | J65: IGB | K65: 1907989.89 | L65: 3806.3 | M65: 0 | N65: aishah | O65: 2017-01-17T09:56:02 | P65: PosTrn | Q65: 1
A66: EQT*170100090 | B66: SP | C66: REITS | D66: 2017-01-17 | E66: 2017-01-17 | F66: BR:KENANGAINV | G66: KENANGA INVESTMENT BANK BHD | H66: MYR | I66: 5180 | J66: CMMT | K66: 4866151.75 | L66: 9709.2 | M66: 0 | N66: aishah | O66: 2017-01-17T09:56:26 | P66: PosTrn | Q66: 1
A67: EQT*170100091 | B67: SP | C67: REITS | D67: 2017-01-17 | E67: 2017-01-17 | F67: BR:KENANGAINV | G67: KENANGA INVESTMENT BANK BHD | H67: MYR | I67: 5121 | J67: HEKTAR | K67: 373761.03 | L67: 838.25 | M67: 0 | N67: aishah | O67: 2017-01-17T09:57:03 | P67: PosTrn | Q67: 1
A68: EQT*170100093 | B68: SS | C68: GROWTH | D68: 2017-01-17 | E68: 2017-01-17 | F68: BR:KENANGAINV | G68: KENANGA INVESTMENT BANK BHD | H68: MYR | I68: 4197 | J68: SIME | K68: 16949353.28 | L68: 16968.6 | M68: -398568.94 | N68: aishah | O68: 2017-01-17T09:57:45 | P68: PosTrn | Q68: 1
A69: EQT*170100094 | B69: SP | C69: REITS | D69: 2017-01-17 | E69: 2017-01-17 | F69: BR:HLGINV | G69: HONG LEONG INVESTMENT BANK BHD | H69: MYR | I69: 5120 | J69: AMFIRST | K69: 268011.5 | L69: 600.95 | M69: 0 | N69: aishah | O69: 2017-01-17T09:58:25 | P69: PosTrn | Q69: 1
A70: EQT*170100095 | B70: SP | C70: REITS | D70: 2017-01-17 | E70: 2017-01-17 | F70: BR:HLGINV | G70: HONG LEONG INVESTMENT BANK BHD | H70: MYR | I70: 5176 | J70: SUNREIT | K70: 1961600.27 | L70: 3913.26 | M70: 0 | N70: aishah | O70: 2017-01-17T09:59:15 | P70: PosTrn | Q70: 1
A71: EQT*170100097 | B71: SP | C71: REITS | D71: 2017-01-17 | E71: 2017-01-17 | F71: BR:HLGINV | G71: HONG LEONG INVESTMENT BANK BHD | H71: MYR | I71: 5109 | J71: YTLREIT | K71: 2821849.79 | L71: 5629.57 | M71: 0 | N71: aishah | O71: 2017-01-17T10:00:03 | P71: PosTrn | Q71: 1
A72: EQT*170100099 | B72: SP | C72: REITS | D72: 2017-01-17 | E72: 2017-01-17 | F72: BR:CIMBINV | G72: CIMB INVESTMENT BANK BHD | H72: MYR | I72: 5123 | J72: MQREIT | K72: 1283320.64 | L72: 2560 | M72: 0 | N72: faris | O72: 2017-01-17T10:17:47 | P72: PosTrn | Q72: 1
A73: EQT*170100100 | B73: SS | C73: GROWTH | D73: 2017-01-17 | E73: 2017-01-17 | F73: BR:AFFINV | G73: AFFIN HWANG INVESTMENT BANK BERHAD | H73: MYR | I73: 4197 | J73: SIME | K73: 4368656.1 | L73: 8758.4 | M73: -105174.06 | N73: aishah | O73: 2017-01-17T16:39:59 | P73: PosTrn | Q73: 1
A74: EQT*170100103 | B74: SP | C74: GROWTH | D74: 2017-01-17 | E74: 2017-01-17 | F74: BR:KENANGAINV | G74: KENANGA INVESTMENT BANK BHD | H74: MYR | I74: 1023 | J74: CIMB | K74: 94549.63 | L74: 211.95 | M74: 0 | N74: aishah | O74: 2017-01-17T17:11:45 | P74: PosTrn | Q74: 1
A75: EQT*170100104 | B75: SP | C75: GROWTH | D75: 2017-01-17 | E75: 2017-01-17 | F75: BR:HLGINV | G75: HONG LEONG INVESTMENT BANK BHD | H75: MYR | I75: 1023 | J75: CIMB | K75: 4758.91 | L75: 40 | M75: 0 | N75: aishah | O75: 2017-01-17T17:13:16 | P75: PosTrn | Q75: 1
A76: EQT*170100105 | B76: SP | C76: REITS | D76: 2017-01-17 | E76: 2017-01-17 | F76: BR:CIMBINV | G76: CIMB INVESTMENT BANK BHD | H76: MYR | I76: 5110 | J76: UOAREIT | K76: 5496779.08 | L76: 5489.7 | M76: 0 | N76: aishah | O76: 2017-01-17T17:14:00 | P76: PosTrn | Q76: 1
A77: EQT*170100107 | B77: SP | C77: REITS | D77: 2017-01-18 | E77: 2017-01-18 | F77: BR:KENANGAINV | G77: KENANGA INVESTMENT BANK BHD | H77: MYR | I77: 5120 | J77: AMFIRST | K77: 134057.42 | L77: 300.52 | M77: 0 | N77: ahmad | O77: 2017-01-18T10:51:08 | P77: PosTrn | Q77: 1
A78: EQT*170100109 | B78: SS | C78: GROWTH | D78: 2017-01-18 | E78: 2017-01-18 | F78: BR:NOMURASECMY | G78: NOMURA SECURITIES MALAYSIA SDN BHD | H78: MYR | I78: 4197 | J78: SIME | K78: 6296580.21 | L78: 6304.52 | M78: -180237.86 | N78: faris | O78: 2017-01-18T17:13:21 | P78: PosTrn | Q78: 1
A79: EQT*170100110 | B79: SP | C79: REITS | D79: 2017-01-19 | E79: 2017-01-19 | F79: BR:RHBINV | G79: RHB INVESTMENT BANK BERHAD | H79: MYR | I79: 5121 | J79: HEKTAR | K79: 191744.38 | L79: 429.83 | M79: 0 | N79: anuar | O79: 2017-01-19T08:58:25 | P79: PosTrn | Q79: 1
A80: EQT*170100112 | B80: SP | C80: REITS | D80: 2017-01-19 | E80: 2017-01-19 | F80: BR:HLGINV | G80: HONG LEONG INVESTMENT BANK BHD | H80: MYR | I80: 5212 | J80: PAVILION | K80: 2413266.06 | L80: 4814.39 | M80: 0 | N80: aishah | O80: 2017-01-19T14:48:58 | P80: PosTrn | Q80: 1
A81: EQT*170100113 | B81: SP | C81: REITS | D81: 2017-01-19 | E81: 2017-01-19 | F81: BR:HLGINV | G81: HONG LEONG INVESTMENT BANK BHD | H81: MYR | I81: 5109 | J81: YTLREIT | K81: 2761321.45 | L81: 5508.81 | M81: 0 | N81: aishah | O81: 2017-01-19T14:49:22 | P81: PosTrn | Q81: 1
A82: EQT*170100114 | B82: SP | C82: REITS | D82: 2017-01-19 | E82: 2017-01-19 | F82: BR:HLGINV | G82: HONG LEONG INVESTMENT BANK BHD | H82: MYR | I82: 5123 | J82: MQREIT | K82: 3995509.9 | L82: 7971.6 | M82: 0 | N82: aishah | O82: 2017-01-19T14:49:48 | P82: PosTrn | Q82: 1
A83: EQT*170100115 | B83: SP | C83: REITS | D83: 2017-01-19 | E83: 2017-01-19 | F83: BR:HLGINV | G83: HONG LEONG INVESTMENT BANK BHD | H83: MYR | I83: 5227 | J83: IGB | K83: 5148410.2 | L83: 5141.7 | M83: 0 | N83: aishah | O83: 2017-01-19T14:50:11 | P83: PosTrn | Q83: 1
A84: EQT*170100116 | B84: SP | C84: REITS | D84: 2017-01-19 | E84: 2017-01-19 | F84: BR:HLGINV | G84: HONG LEONG INVESTMENT BANK BHD | H84: MYR | I84: 5110 | J84: UOAREIT | K84: 638595.59 | L84: 1432.52 | M84: 0 | N84: aishah | O84: 2017-01-19T14:50:35 | P84: PosTrn | Q84: 1
A85: EQT*170100117 | B85: SP | C85: REITS | D85: 2017-01-19 | E85: 2017-01-19 | F85: BR:HLGINV | G85: HONG LEONG INVESTMENT BANK BHD | H85: MYR | I85: 5120 | J85: AMFIRST | K85: 409674.81 | L85: 918.83 | M85: 0 | N85: aishah | O85: 2017-01-19T14:51:04 | P85: PosTrn | Q85: 1
A86: EQT*170100118 | B86: SS | C86: DIVIDEND | D86: 2017-01-20 | E86: 2017-01-20 | F86: BR:RHBINV | G86: RHB INVESTMENT BANK BERHAD | H86: MYR | I86: 1899 | J86: BKAWAN | K86: 78248.7 | L86: 176.72 | M86: -4649.18 | N86: faris | O86: 2017-01-20T09:28:20 | P86: PosTrn | Q86: 1
A87: EQT*170100119 | B87: SP | C87: REITS | D87: 2017-01-20 | E87: 2017-01-20 | F87: BR:KAFSEC | G87: KAF-SEAGROATT & CAMPBELL SECURITIES SDN BHD | H87: MYR | I87: 5120 | J87: AMFIRST | K87: 12219.27 | L87: 40 | M87: 0 | N87: anuar | O87: 2017-01-20T09:29:45 | P87: PosTrn | Q87: 1
A88: EQT*170100121 | B88: SP | C88: REITS | D88: 2017-01-20 | E88: 2017-01-20 | F88: BR:KAFSEC | G88: KAF-SEAGROATT & CAMPBELL SECURITIES SDN BHD | H88: MYR | I88: 5116 | J88: ALAQAR | K88: 1564003.28 | L88: 3120 | M88: 0 | N88: anuar | O88: 2017-01-20T09:31:14 | P88: PosTrn | Q88: 1
A89: EQT*170100124 | B89: SS | C89: GROWTH | D89: 2017-01-20 | E89: 2017-01-20 | F89: BR:AFFINV | G89: AFFIN HWANG INVESTMENT BANK BERHAD | H89: MYR | I89: 4197 | J89: SIME | K89: 4265175.94 | L89: 8551 | M89: -127479.86 | N89: aishah | O89: 2017-01-20T16:25:27 | P89: PosTrn | Q89: 1
A90: EQT*170100125 | B90: SP | C90: REITS | D90: 2017-01-20 | E90: 2017-01-20 | F90: BR:AFFINV | G90: AFFIN HWANG INVESTMENT BANK BERHAD | H90: MYR | I90: 5109 | J90: YTLREIT | K90: 1843411.93 | L90: 3677.46 | M90: 0 | N90: aishah | O90: 2017-01-20T16:42:20 | P90: PosTrn | Q90: 1
A91: EQT*170100126 | B91: SP | C91: REITS | D91: 2017-01-20 | E91: 2017-01-20 | F91: BR:AFFINV | G91: AFFIN HWANG INVESTMENT BANK BERHAD | H91: MYR | I91: 5227 | J91: IGB | K91: 1893839.78 | L91: 3778.07 | M91: 0 | N91: aishah | O91: 2017-01-20T16:42:51 | P91: PosTrn | Q91: 1
A92: EQT*170100127 | B92: SP | C92: REITS | D92: 2017-01-20 | E92: 2017-01-20 | F92: BR:AFFINV | G92: AFFIN HWANG INVESTMENT BANK BERHAD | H92: MYR | I92: 5110 | J92: UOAREIT | K92: 60247.24 | L92: 135.05 | M92: 0 | N92: aishah | O92: 2017-01-20T16:43:38 | P92: PosTrn | Q92: 1
A93: EQT*170100128 | B93: SP | C93: REITS | D93: 2017-01-20 | E93: 2017-01-20 | F93: BR:AFFINV | G93: AFFIN HWANG INVESTMENT BANK BERHAD | H93: MYR | I93: 5121 | J93: HEKTAR | K93: 45102.48 | L93: 101.11 | M93: 0 | N93: aishah | O93: 2017-01-20T16:46:02 | P93: PosTrn | Q93: 1
A94: EQT*170100130 | B94: SP | C94: REITS | D94: 2017-01-20 | E94: 2017-01-20 | F94: BR:AFFINV | G94: AFFIN HWANG INVESTMENT BANK BERHAD | H94: MYR | I94: 5116 | J94: ALAQAR | K94: 921523.63 | L94: 2067.39 | M94: 0 | N94: aishah | O94: 2017-01-20T16:50:26 | P94: PosTrn | Q94: 1
A95: EQT*170100132 | B95: SP | C95: REITS | D95: 2017-01-23 | E95: 2017-01-23 | F95: BR:CIMBINV | G95: CIMB INVESTMENT BANK BHD | H95: MYR | I95: 5123 | J95: MQREIT | K95: 1323418.16 | L95: 2640 | M95: 0 | N95: faris | O95: 2017-01-23T09:19:24 | P95: PosTrn | Q95: 1
A96: EQT*170100133 | B96: SS | C96: DIVIDEND | D96: 2017-01-23 | E96: 2017-01-23 | F96: BR:RHBINV | G96: RHB INVESTMENT BANK BERHAD | H96: MYR | I96: 1899 | J96: BKAWAN | K96: 206863.18 | L96: 467.15 | M96: -12350.15 | N96: faris | O96: 2017-01-23T09:20:06 | P96: PosTrn | Q96: 1
A97: EQT*170100135 | B97: SS | C97: GROWTH | D97: 2017-01-23 | E97: 2017-01-23 | F97: BR:KAFSEC | G97: KAF-SEAGROATT & CAMPBELL SECURITIES SDN BHD | H97: MYR | I97: 4197 | J97: SIME | K97: 2132840.32 | L97: 4276.51 | M97: -99576.46 | N97: wei.rhong | O97: 2017-01-23T09:31:43 | P97: PosTrn | Q97: 1
A98: EQT*170100137 | B98: SP | C98: REITS | D98: 2017-01-23 | E98: 2017-01-23 | F98: BR:ALLIANCEINV | G98: ALLIANCE INVESTMENT BANK BERHAD | H98: MYR | I98: 5120 | J98: AMFIRST | K98: 52883.62 | L98: 118.55 | M98: 0 | N98: ahmad | O98: 2017-01-23T09:50:24 | P98: PosTrn | Q98: 1
A99: EQT*170100138 | B99: SP | C99: REITS | D99: 2017-01-23 | E99: 2017-01-23 | F99: BR:ALLIANCEINV | G99: ALLIANCE INVESTMENT BANK BERHAD | H99: MYR | I99: 5227 | J99: IGB | K99: 1714368.98 | L99: 3420 | M99: 0 | N99: ahmad | O99: 2017-01-23T09:50:46 | P99: PosTrn | Q99: 1
A100: EQT*170100140 | B100: SS | C100: VALUE | D100: 2017-01-23 | E100: 2017-01-23 | F100: BR:HLGINV | G100: HONG LEONG INVESTMENT BANK BHD | H100: MYR | I100: 5398 | J100: GAMUDA | K100: 987423.21 | L100: 2228.18 | M100: -9758.17 | N100: ahmad | O100: 2017-01-23T09:51:32 | P100: PosTrn | Q100: 1
A101: EQT*170100142 | B101: SP | C101: REITS | D101: 2017-01-23 | E101: 2017-01-23 | F101: BR:HLGINV | G101: HONG LEONG INVESTMENT BANK BHD | H101: MYR | I101: 5212 | J101: PAVILION | K101: 1550289.93 | L101: 3092.64 | M101: 0 | N101: ahmad | O101: 2017-01-23T10:48:19 | P101: PosTrn | Q101: 1
A102: EQT*170100143 | B102: SP | C102: REITS | D102: 2017-01-23 | E102: 2017-01-23 | F102: BR:CIMBINV | G102: CIMB INVESTMENT BANK BHD | H102: MYR | I102: 5212 | J102: PAVILION | K102: 1384765.36 | L102: 2762.4 | M102: 0 | N102: ahmad | O102: 2017-01-23T15:21:37 | P102: PosTrn | Q102: 1
A103: EQT*170100144 | B103: SP | C103: REITS | D103: 2017-01-23 | E103: 2017-01-23 | F103: BR:CIMBINV | G103: CIMB INVESTMENT BANK BHD | H103: MYR | I103: 5227 | J103: IGB | K103: 1714368.98 | L103: 3420 | M103: 0 | N103: ahmad | O103: 2017-01-23T15:21:57 | P103: PosTrn | Q103: 1
A104: EQT*170100145 | B104: SP | C104: REITS | D104: 2017-01-23 | E104: 2017-01-23 | F104: BR:CIMBINV | G104: CIMB INVESTMENT BANK BHD | H104: MYR | I104: 5180 | J104: CMMT | K104: 1218162.17 | L104: 2430 | M104: 0 | N104: faris | O104: 2017-01-23T15:51:40 | P104: PosTrn | Q104: 1
A105: EQT*170100146 | B105: SP | C105: REITS | D105: 2017-01-23 | E105: 2017-01-23 | F105: BR:RHBINV | G105: RHB INVESTMENT BANK BERHAD | H105: MYR | I105: 5121 | J105: HEKTAR | K105: 29313.95 | L105: 65.71 | M105: 0 | N105: aishah | O105: 2017-01-23T16:29:18 | P105: PosTrn | Q105: 1
A106: EQT*170100148 | B106: SP | C106: REITS | D106: 2017-01-23 | E106: 2017-01-23 | F106: BR:RHBINV | G106: RHB INVESTMENT BANK BERHAD | H106: MYR | I106: 5227 | J106: IGB | K106: 5160122.6 | L106: 5153.4 | M106: 0 | N106: aishah | O106: 2017-01-23T16:30:11 | P106: PosTrn | Q106: 1
A107: EQT*170100149 | B107: SP | C107: REITS | D107: 2017-01-23 | E107: 2017-01-23 | F107: BR:RHBINV | G107: RHB INVESTMENT BANK BERHAD | H107: MYR | I107: 5110 | J107: UOAREIT | K107: 435198.92 | L107: 976.11 | M107: 0 | N107: aishah | O107: 2017-01-23T16:30:39 | P107: PosTrn | Q107: 1
A108: EQT*170100150 | B108: SP | C108: REITS | D108: 2017-01-23 | E108: 2017-01-23 | F108: BR:RHBINV | G108: RHB INVESTMENT BANK BERHAD | H108: MYR | I108: 5120 | J108: AMFIRST | K108: 226339.09 | L108: 507.44 | M108: 0 | N108: aishah | O108: 2017-01-23T16:31:30 | P108: PosTrn | Q108: 1
A109: EQT*170100151 | B109: SP | C109: REITS | D109: 2017-01-23 | E109: 2017-01-23 | F109: BR:RHBINV | G109: RHB INVESTMENT BANK BERHAD | H109: MYR | I109: 5212 | J109: PAVILION | K109: 1332019.08 | L109: 2657.16 | M109: 0 | N109: faris | O109: 2017-01-23T17:12:41 | P109: PosTrn | Q109: 1
A110: EQT*170100152 | B110: SP | C110: REITS | D110: 2017-01-23 | E110: 2017-01-23 | F110: BR:RHBINV | G110: RHB INVESTMENT BANK BERHAD | H110: MYR | I110: 5109 | J110: YTLREIT | K110: 1258890.93 | L110: 2511.26 | M110: 0 | N110: aishah | O110: 2017-01-23T17:58:02 | P110: PosTrn | Q110: 1
A111: EQT*170100156 | B111: SS | C111: DIVIDEND | D111: 2017-01-24 | E111: 2017-01-24 | F111: BR:UBSSECMY | G111: UBS SECURITIES MALAYSIA SDN BHD | H111: MYR | I111: 1899 | J111: BKAWAN | K111: 37260.91 | L111: 84.15 | M111: -2213.52 | N111: faris | O111: 2017-01-24T09:25:02 | P111: PosTrn | Q111: 1
A112: EQT*170100157 | B112: SP | C112: REITS | D112: 2017-01-24 | E112: 2017-01-24 | F112: BR:KAFSEC | G112: KAF-SEAGROATT & CAMPBELL SECURITIES SDN BHD | H112: MYR | I112: 5235SS | J112: KLCC | K112: 5403768.36 | L112: 5396.79 | M112: 0 | N112: ahmad | O112: 2017-01-24T09:30:04 | P112: PosTrn | Q112: 1
A113: EQT*170100158 | B113: SP | C113: REITS | D113: 2017-01-24 | E113: 2017-01-24 | F113: BR:RHBINV | G113: RHB INVESTMENT BANK BERHAD | H113: MYR | I113: 5116 | J113: ALAQAR | K113: 77787.49 | L113: 174.38 | M113: 0 | N113: anuar | O113: 2017-01-24T09:30:25 | P113: PosTrn | Q113: 1
A114: EQT*170100159 | B114: SS | C114: VALUE | D114: 2017-01-24 | E114: 2017-01-24 | F114: BR:KAFSEC | G114: KAF-SEAGROATT & CAMPBELL SECURITIES SDN BHD | H114: MYR | I114: 2445 | J114: KLK | K114: 484486.34 | L114: 1093.5 | M114: -6263.99 | N114: ahmad | O114: 2017-01-24T09:30:43 | P114: PosTrn | Q114: 1
A115: EQT*170100162 | B115: SP | C115: REITS | D115: 2017-01-24 | E115: 2017-01-24 | F115: BR:ALLIANCEINV | G115: ALLIANCE INVESTMENT BANK BERHAD | H115: MYR | I115: 5227 | J115: IGB | K115: 308838 | L115: 692.56 | M115: 0 | N115: ahmad | O115: 2017-01-24T09:35:23 | P115: PosTrn | Q115: 1
A116: EQT*170100163 | B116: SP | C116: REITS | D116: 2017-01-24 | E116: 2017-01-24 | F116: BR:ALLIANCEINV | G116: ALLIANCE INVESTMENT BANK BERHAD | H116: MYR | I116: 5110 | J116: UOAREIT | K116: 49258.01 | L116: 110.42 | M116: 0 | N116: ahmad | O116: 2017-01-24T09:35:44 | P116: PosTrn | Q116: 1
A117: EQT*170100164 | B117: SP | C117: REITS | D117: 2017-01-24 | E117: 2017-01-24 | F117: BR:TASEC | G117: TA SECURITIES HOLDINGS BHD | H117: MYR | I117: 5123 | J117: MQREIT | K117: 1339356.93 | L117: 2671.8 | M117: 0 | N117: wei.rhong | O117: 2017-01-24T09:46:04 | P117: PosTrn | Q117: 1
A118: EQT*170100165 | B118: SP | C118: REITS | D118: 2017-01-24 | E118: 2017-01-24 | F118: BR:TASEC | G118: TA SECURITIES HOLDINGS BHD | H118: MYR | I118: 5109 | J118: YTLREIT | K118: 61100.56 | L118: 136.97 | M118: 0 | N118: wei.rhong | O118: 2017-01-24T09:47:08 | P118: PosTrn | Q118: 1
A119: EQT*170100166 | B119: SP | C119: REITS | D119: 2017-01-24 | E119: 2017-01-24 | F119: BR:KAFSEC | G119: KAF-SEAGROATT & CAMPBELL SECURITIES SDN BHD | H119: MYR | I119: 5116 | J119: ALAQAR | K119: 1564003.28 | L119: 3120 | M119: 0 | N119: faris | O119: 2017-01-24T10:47:25 | P119: PosTrn | Q119: 1
A120: EQT*170100167 | B120: SP | C120: REITS | D120: 2017-01-24 | E120: 2017-01-24 | F120: BR:AFFINV | G120: AFFIN HWANG INVESTMENT BANK BERHAD | H120: MYR | I120: 5180 | J120: CMMT | K120: 1634173.94 | L120: 3260 | M120: 0 | N120: faris | O120: 2017-01-24T11:00:05 | P120: PosTrn | Q120: 1
A121: EQT*170100168 | B121: SP | C121: REITS | D121: 2017-01-24 | E121: 2017-01-24 | F121: BR:CIMBINV | G121: CIMB INVESTMENT BANK BHD | H121: MYR | I121: 5123 | J121: MQREIT | K121: 1333442.54 | L121: 2660 | M121: 0 | N121: faris | O121: 2017-01-24T12:24:13 | P121: PosTrn | Q121: 1
A122: EQT*170100171 | B122: SP | C122: REITS | D122: 2017-01-24 | E122: 2017-01-24 | F122: BR:HLGINV | G122: HONG LEONG INVESTMENT BANK BHD | H122: MYR | I122: 5109 | J122: YTLREIT | K122: 3478480.43 | L122: 6939.73 | M122: 0 | N122: aishah | O122: 2017-01-24T16:53:39 | P122: PosTrn | Q122: 1
A123: EQT*170100172 | B123: SP | C123: REITS | D123: 2017-01-24 | E123: 2017-01-24 | F123: BR:HLGINV | G123: HONG LEONG INVESTMENT BANK BHD | H123: MYR | I123: 5120 | J123: AMFIRST | K123: 320042.91 | L123: 717.71 | M123: 0 | N123: aishah | O123: 2017-01-24T16:54:03 | P123: PosTrn | Q123: 1
A124: EQT*170100174 | B124: SP | C124: REITS | D124: 2017-01-24 | E124: 2017-01-24 | F124: BR:HLGINV | G124: HONG LEONG INVESTMENT BANK BHD | H124: MYR | I124: 5176 | J124: SUNREIT | K124: 4022257.04 | L124: 8024.98 | M124: 0 | N124: aishah | O124: 2017-01-24T16:55:10 | P124: PosTrn | Q124: 1
A125: EQT*170100176 | B125: SP | C125: REITS | D125: 2017-01-24 | E125: 2017-01-24 | F125: BR:HLGINV | G125: HONG LEONG INVESTMENT BANK BHD | H125: MYR | I125: 5212 | J125: PAVILION | K125: 1114048.97 | L125: 2222.28 | M125: 0 | N125: aishah | O125: 2017-01-24T17:01:52 | P125: PosTrn | Q125: 1
A126: EQT*170100177 | B126: SP | C126: REITS | D126: 2017-01-24 | E126: 2017-01-24 | F126: BR:HLGINV | G126: HONG LEONG INVESTMENT BANK BHD | H126: MYR | I126: 5227 | J126: IGB | K126: 3237927.99 | L126: 6459.71 | M126: 0 | N126: aishah | O126: 2017-01-24T17:02:34 | P126: PosTrn | Q126: 1
A127: EQT*170100178 | B127: SP | C127: REITS | D127: 2017-01-24 | E127: 2017-01-24 | F127: BR:HLGINV | G127: HONG LEONG INVESTMENT BANK BHD | H127: MYR | I127: 5180 | J127: CMMT | K127: 4954538.74 | L127: 9885.6 | M127: 0 | N127: aishah | O127: 2017-01-24T17:03:35 | P127: PosTrn | Q127: 1
A128: EQT*170100179 | B128: SS | C128: DIVIDEND | D128: 2017-01-25 | E128: 2017-01-25 | F128: BR:UBSSECMY | G128: UBS SECURITIES MALAYSIA SDN BHD | H128: MYR | I128: 1899 | J128: BKAWAN | K128: 266487.19 | L128: 601.67 | M128: -15898.33 | N128: faris | O128: 2017-01-25T09:14:41 | P128: PosTrn | Q128: 1
A129: EQT*170100180 | B129: SP | C129: REITS | D129: 2017-01-25 | E129: 2017-01-25 | F129: BR:MACQUARIE | G129: MACQUARIE CAPITAL SECURITIES (MALAYSIA) SDN BHD | H129: MYR | I129: 5235SS | J129: KLCC | K129: 513794.51 | L129: 1152.47 | M129: 0 | N129: ahmad | O129: 2017-01-25T09:16:05 | P129: PosTrn | Q129: 1
A130: EQT*170100184 | B130: SP | C130: REITS | D130: 2017-01-25 | E130: 2017-01-25 | F130: BR:CREDITSUISSEMY | G130: CREDIT SUISSE SECURITIES (M) SDN BHD | H130: MYR | I130: 5109 | J130: YTLREIT | K130: 1211867.38 | L130: 1210 | M130: 0 | N130: ahmad | O130: 2017-01-25T09:44:44 | P130: PosTrn | Q130: 1
A131: EQT*170100185 | B131: SS | C131: VALUE | D131: 2017-01-25 | E131: 2017-01-25 | F131: BR:KAFSEC | G131: KAF-SEAGROATT & CAMPBELL SECURITIES SDN BHD | H131: MYR | I131: 2445 | J131: KLK | K131: 4850232.98 | L131: 9723.6 | M131: -68009.52 | N131: ahmad | O131: 2017-01-25T10:09:44 | P131: PosTrn | Q131: 1
A132: EQT*170100186 | B132: SP | C132: REITS | D132: 2017-01-25 | E132: 2017-01-25 | F132: BR:KENANGAINV | G132: KENANGA INVESTMENT BANK BHD | H132: MYR | I132: 5176 | J132: SUNREIT | K132: 1774515.26 | L132: 3540 | M132: 0 | N132: faris | O132: 2017-01-25T11:08:52 | P132: PosTrn | Q132: 1
A133: EQT*170100187 | B133: SP | C133: REITS | D133: 2017-01-26 | E133: 2017-01-26 | F133: BR:TASEC | G133: TA SECURITIES HOLDINGS BHD | H133: MYR | I133: 5123 | J133: MQREIT | K133: 77093.57 | L133: 172.82 | M133: 0 | N133: ahmad | O133: 2017-01-26T09:08:27 | P133: PosTrn | Q133: 1
A134: EQT*170100189 | B134: SP | C134: REITS | D134: 2017-01-26 | E134: 2017-01-26 | F134: BR:TASEC | G134: TA SECURITIES HOLDINGS BHD | H134: MYR | I134: 5120 | J134: AMFIRST | K134: 107350.43 | L134: 240.65 | M134: 0 | N134: ahmad | O134: 2017-01-26T09:09:17 | P134: PosTrn | Q134: 1
A135: EQT*170100190 | B135: SS | C135: VALUE | D135: 2017-01-26 | E135: 2017-01-26 | F135: BR:TASEC | G135: TA SECURITIES HOLDINGS BHD | H135: MYR | I135: 2445 | J135: KLK | K135: 5536334.27 | L135: 5543.47 | M135: -91772.86 | N135: ahmad | O135: 2017-01-26T09:09:41 | P135: PosTrn | Q135: 1
A136: EQT*170100192 | B136: SS | C136: VALUE | D136: 2017-01-26 | E136: 2017-01-26 | F136: BR:CIMBINV | G136: CIMB INVESTMENT BANK BHD | H136: MYR | I136: 2445 | J136: KLK | K136: 354496.12 | L136: 800.23 | M136: -5393.81 | N136: faris | O136: 2017-01-26T09:17:25 | P136: PosTrn | Q136: 1
A137: EQT*170100193 | B137: SS | C137: SMALLMIDCAP | D137: 2017-01-26 | E137: 2017-01-26 | F137: BR:MIDFINV | G137: MIDF AMANAH INVESTMENT BANK BHD | H137: MYR | I137: 7022 | J137: GTRONIC | K137: 4061608.42 | L137: 8143 | M137: -94200.07 | N137: wei.rhong | O137: 2017-01-26T09:31:43 | P137: PosTrn | Q137: 1
A138: EQT*170100194 | B138: SS | C138: SMALLMIDCAP | D138: 2017-01-26 | E138: 2017-01-26 | F138: BR:AFFINV | G138: AFFIN HWANG INVESTMENT BANK BERHAD | H138: MYR | I138: 7022 | J138: GTRONIC | K138: 2154270.31 | L138: 4319.47 | M138: -49956.92 | N138: anuar | O138: 2017-01-26T09:36:43 | P138: PosTrn | Q138: 1
A139: EQT*170100196 | B139: SP | C139: REITS | D139: 2017-01-26 | E139: 2017-01-26 | F139: BR:AFFINV | G139: AFFIN HWANG INVESTMENT BANK BERHAD | H139: MYR | I139: 5176 | J139: SUNREIT | K139: 1253616.69 | L139: 2500.74 | M139: 0 | N139: ahmad | O139: 2017-01-26T10:00:35 | P139: PosTrn | Q139: 1
A140: EQT*170100197 | B140: SP | C140: REITS | D140: 2017-01-26 | E140: 2017-01-26 | F140: BR:AFFINV | G140: AFFIN HWANG INVESTMENT BANK BERHAD | H140: MYR | I140: 5180 | J140: CMMT | K140: 214947.77 | L140: 481.88 | M140: 0 | N140: ahmad | O140: 2017-01-26T10:00:58 | P140: PosTrn | Q140: 1
A141: EQT*170100199 | B141: SP | C141: REITS | D141: 2017-01-26 | E141: 2017-01-26 | F141: BR:RHBINV | G141: RHB INVESTMENT BANK BERHAD | H141: MYR | I141: 5227 | J141: IGB | K141: 1754366.26 | L141: 3499.8 | M141: 0 | N141: ahmad | O141: 2017-01-26T10:01:36 | P141: PosTrn | Q141: 1
A142: EQT*170100201 | B142: SP | C142: REITS | D142: 2017-01-26 | E142: 2017-01-26 | F142: BR:CREDITSUISSEMY | G142: CREDIT SUISSE SECURITIES (M) SDN BHD | H142: MYR | I142: 5109 | J142: YTLREIT | K142: 1203125.6 | L142: 2400 | M142: 0 | N142: ahmad | O142: 2017-01-26T10:10:27 | P142: PosTrn | Q142: 1
A143: EQT*170100202 | B143: SP | C143: REITS | D143: 2017-01-26 | E143: 2017-01-26 | F143: BR:KAFSEC | G143: KAF-SEAGROATT & CAMPBELL SECURITIES SDN BHD | H143: MYR | I143: 5116 | J143: ALAQAR | K143: 1584052.04 | L143: 3160 | M143: 0 | N143: ahmad | O143: 2017-01-26T15:01:18 | P143: PosTrn | Q143: 1
A144: EQT*170100204 | B144: SP | C144: REITS | D144: 2017-01-26 | E144: 2017-01-26 | F144: BR:KAFSEC | G144: KAF-SEAGROATT & CAMPBELL SECURITIES SDN BHD | H144: MYR | I144: 5227 | J144: IGB | K144: 1754466.5 | L144: 3500 | M144: 0 | N144: ahmad | O144: 2017-01-26T15:02:30 | P144: PosTrn | Q144: 1
A145: EQT*170100205 | B145: SP | C145: GROWTH | D145: 2017-01-26 | E145: 2017-01-26 | F145: BR:MACQUARIE | G145: MACQUARIE CAPITAL SECURITIES (MALAYSIA) SDN BHD | H145: MYR | I145: 6033 | J145: PETGAS | K145: 210936.5 | L145: 472.88 | M145: 0 | N145: wei.rhong | O145: 2017-01-26T16:21:35 | P145: PosTrn | Q145: 1
A146: EQT*170100206 | B146: SP | C146: REITS | D146: 2017-01-26 | E146: 2017-01-26 | F146: BR:NOMURASECMY | G146: NOMURA SECURITIES MALAYSIA SDN BHD | H146: MYR | I146: 5109 | J146: YTLREIT | K146: 1034144.15 | L146: 2062.86 | M146: 0 | N146: aishah | O146: 2017-01-26T16:26:00 | P146: PosTrn | Q146: 1
A147: EQT*170100207 | B147: SS | C147: GROWTH | D147: 2017-01-26 | E147: 2017-01-26 | F147: BR:MACQUARIE | G147: MACQUARIE CAPITAL SECURITIES (MALAYSIA) SDN BHD | H147: MYR | I147: 6033 | J147: PETGAS | K147: 214839.43 | L147: 485.15 | M147: -3902.93 | N147: wei.rhong | O147: 2017-01-26T16:28:05 | P147: PosTrn | Q147: 1
A148: EQT*170100208 | B148: SP | C148: REITS | D148: 2017-01-26 | E148: 2017-01-26 | F148: BR:NOMURASECMY | G148: NOMURA SECURITIES MALAYSIA SDN BHD | H148: MYR | I148: 5176 | J148: SUNREIT | K148: 3223224.61 | L148: 6430.37 | M148: 0 | N148: aishah | O148: 2017-01-26T16:32:13 | P148: PosTrn | Q148: 1
A149: EQT*170100209 | B149: SP | C149: REITS | D149: 2017-01-26 | E149: 2017-01-26 | F149: BR:NOMURASECMY | G149: NOMURA SECURITIES MALAYSIA SDN BHD | H149: MYR | I149: 5227 | J149: IGB | K149: 5256825 | L149: 5250 | M149: 0 | N149: aishah | O149: 2017-01-26T16:33:49 | P149: PosTrn | Q149: 1
A150: EQT*170100210 | B150: SS | C150: SMALLMIDCAP | D150: 2017-01-26 | E150: 2017-01-26 | F150: BR:BIMBSEC | G150: BIMB SECURITIES SDN BHD | H150: MYR | I150: 7022 | J150: GTRONIC | K150: 6885224.58 | L150: 6893.79 | M150: -188239.29 | N150: aishah | O150: 2017-01-26T16:39:30 | P150: PosTrn | Q150: 1
A151: EQT*170100211 | B151: SS | C151: SMALLMIDCAP | D151: 2017-01-27 | E151: 2017-01-27 | F151: BR:BIMBSEC | G151: BIMB SECURITIES SDN BHD | H151: MYR | I151: 7022 | J151: GTRONIC | K151: 4079071.32 | L151: 8178 | M151: -111662.97 | N151: ahmad | O151: 2017-01-27T09:12:24 | P151: PosTrn | Q151: 1
A152: EQT*170100212 | B152: SS | C152: VALUE | D152: 2017-01-27 | E152: 2017-01-27 | F152: BR:MAYBANKINV | G152: MAYBANK INVESTMENT BANK | H152: MYR | I152: 2445 | J152: KLK | K152: 2002954.36 | L152: 4016.1 | M152: -30287.18 | N152: ahmad | O152: 2017-01-27T09:16:28 | P152: PosTrn | Q152: 1
A153: EQT*170100213 | B153: SP | C153: REITS | D153: 2017-01-27 | E153: 2017-01-27 | F153: BR:MAYBANKINV | G153: MAYBANK INVESTMENT BANK | H153: MYR | I153: 5120 | J153: AMFIRST | K153: 432468.28 | L153: 969.98 | M153: 0 | N153: ahmad | O153: 2017-01-27T09:17:10 | P153: PosTrn | Q153: 1
A154: EQT*170100214 | B154: SP | C154: REITS | D154: 2017-01-27 | E154: 2017-01-27 | F154: BR:MAYBANKINV | G154: MAYBANK INVESTMENT BANK | H154: MYR | I154: 5109 | J154: YTLREIT | K154: 14460.98 | L154: 40 | M154: 0 | N154: ahmad | O154: 2017-01-27T09:17:44 | P154: PosTrn | Q154: 1
A155: EQT*170100215 | B155: SS | C155: DIVIDEND | D155: 2017-01-27 | E155: 2017-01-27 | F155: BR:AMINVBANK | G155: AMINVESTMENT BANK BHD | H155: MYR | I155: 1899 | J155: BKAWAN | K155: 87480.53 | L155: 197.56 | M155: -5119.15 | N155: faris | O155: 2017-01-27T09:18:29 | P155: PosTrn | Q155: 1
A156: EQT*170100216 | B156: SS | C156: VALUE | D156: 2017-01-27 | E156: 2017-01-27 | F156: BR:UBSSECMY | G156: UBS SECURITIES MALAYSIA SDN BHD | H156: MYR | I156: 2445 | J156: KLK | K156: 318053.43 | L156: 718.01 | M156: -4817.79 | N156: anuar | O156: 2017-01-27T09:26:19 | P156: PosTrn | Q156: 1
A157: EQT*170100217 | B157: SS | C157: GROWTH | D157: 2017-01-27 | E157: 2017-01-27 | F157: BR:AMINVBANK | G157: AMINVESTMENT BANK BHD | H157: MYR | I157: 8206 | J157: ECOWLD | K157: 38956.3 | L157: 87.98 | M157: -3401.13 | N157: faris | O157: 2017-01-27T11:51:54 | P157: PosTrn | Q157: 1
A158: EQT*170100218 | B158: SP | C158: REITS | D158: 2017-01-27 | E158: 2017-01-27 | F158: BR:NOMURASECMY | G158: NOMURA SECURITIES MALAYSIA SDN BHD | H158: MYR | I158: 5235SS | J158: KLCC | K158: 16767277.94 | L158: 16748.26 | M158: 0 | N158: aishah | O158: 2017-01-27T12:08:08 | P158: PosTrn | Q158: 1
A159: EQT*170100219 | B159: SP | C159: REITS | D159: 2017-01-27 | E159: 2017-01-27 | F159: BR:NOMURASECMY | G159: NOMURA SECURITIES MALAYSIA SDN BHD | H159: MYR | I159: 5109 | J159: YTLREIT | K159: 311737.81 | L159: 699.07 | M159: 0 | N159: aishah | O159: 2017-01-27T12:08:36 | P159: PosTrn | Q159: 1
A160: EQT*170100220 | B160: SP | C160: REITS | D160: 2017-01-27 | E160: 2017-01-27 | F160: BR:NOMURASECMY | G160: NOMURA SECURITIES MALAYSIA SDN BHD | H160: MYR | I160: 5227 | J160: IGB | K160: 4180240.7 | L160: 8340.28 | M160: 0 | N160: aishah | O160: 2017-01-27T12:09:15 | P160: PosTrn | Q160: 1
A161: EQT*170100221 | B161: SP | C161: REITS | D161: 2017-01-27 | E161: 2017-01-27 | F161: BR:NOMURASECMY | G161: NOMURA SECURITIES MALAYSIA SDN BHD | H161: MYR | I161: 5110 | J161: UOAREIT | K161: 34342.29 | L161: 76.98 | M161: 0 | N161: aishah | O161: 2017-01-27T12:09:40 | P161: PosTrn | Q161: 1
A162: EQT*170100222 | B162: SP | C162: REITS | D162: 2017-01-27 | E162: 2017-01-27 | F162: BR:NOMURASECMY | G162: NOMURA SECURITIES MALAYSIA SDN BHD | H162: MYR | I162: 5120 | J162: AMFIRST | K162: 1132071.19 | L162: 2258.24 | M162: 0 | N162: aishah | O162: 2017-01-27T12:10:08 | P162: PosTrn | Q162: 1
A163: EQT*170100223 | B163: SP | C163: DIVIDEND | D163: 2017-01-27 | E163: 2017-01-27 | F163: BR:NOMURASECMY | G163: NOMURA SECURITIES MALAYSIA SDN BHD | H163: MYR | I163: 1295 | J163: PBBANK | K163: 3655089.73 | L163: 7292.2 | M163: 0 | N163: aishah | O163: 2017-01-27T12:10:37 | P163: PosTrn | Q163: 1
A164: EQT*170100224 | B164: SP | C164: REITS | D164: 2017-01-27 | E164: 2017-01-27 | F164: BR:AFFINV | G164: AFFIN HWANG INVESTMENT BANK BERHAD | H164: MYR | I164: 5110 | J164: UOAREIT | K164: 196030.65 | L164: 439.44 | M164: 0 | N164: aishah | O164: 2017-01-27T12:11:22 | P164: PosTrn | Q164: 1
A165: EQT*170100225 | B165: SP | C165: REITS | D165: 2017-01-27 | E165: 2017-01-27 | F165: BR:AFFINV | G165: AFFIN HWANG INVESTMENT BANK BERHAD | H165: MYR | I165: 5212 | J165: PAVILION | K165: 3609355.68 | L165: 7200.93 | M165: 0 | N165: aishah | O165: 2017-01-27T12:11:44 | P165: PosTrn | Q165: 1
A166: EQT*170100226 | B166: SP | C166: REITS | D166: 2017-01-27 | E166: 2017-01-27 | F166: BR:AFFINV | G166: AFFIN HWANG INVESTMENT BANK BERHAD | H166: MYR | I166: 5227 | J166: IGB | K166: 1641314.64 | L166: 3274.25 | M166: 0 | N166: aishah | O166: 2017-01-27T12:14:46 | P166: PosTrn | Q166: 1
A167: EQT*170100227 | B167: SS | C167: SMALLMIDCAP | D167: 2017-01-27 | E167: 2017-01-27 | F167: BR:AMINVBANK | G167: AMINVESTMENT BANK BHD | H167: MYR | I167: 7022 | J167: GTRONIC | K167: 5364505.45 | L167: 5371.46 | M167: -159265.7 | N167: aishah | O167: 2017-01-27T12:30:33 | P167: PosTrn | Q167: 1
A168: EQT*170100228 | B168: SP | C168: GROWTH | D168: 2017-01-27 | E168: 2017-01-27 | F168: BR:NOMURASECMY | G168: NOMURA SECURITIES MALAYSIA SDN BHD | H168: MYR | I168: 8664 | J168: SPSETIA | K168: 6823483.9 | L168: 6815 | M168: 0 | N168: aishah | O168: 2017-01-27T12:41:20 | P168: PosTrn | Q168: 1
A169: EQT*170100229 | B169: SP | C169: REITS | D169: 2017-01-31 | E169: 2017-01-31 | F169: BR:CIMBINV | G169: CIMB INVESTMENT BANK BHD | H169: MYR | I169: 5212 | J169: PAVILION | K169: 3809316 | L169: 7600 | M169: 0 | N169: aishah | O169: 2017-01-31T09:12:12 | P169: PosTrn | Q169: 1
A170: EQT*170100231 | B170: SP | C170: REITS | D170: 2017-01-31 | E170: 2017-01-31 | F170: BR:AFFINV | G170: AFFIN HWANG INVESTMENT BANK BERHAD | H170: MYR | I170: 5212 | J170: PAVILION | K170: 5782381.5 | L170: 5775 | M170: 0 | N170: aishah | O170: 2017-01-31T09:15:19 | P170: PosTrn | Q170: 1
A171: EQT*170100232 | B171: SP | C171: REITS | D171: 2017-01-31 | E171: 2017-01-31 | F171: BR:AFFINV | G171: AFFIN HWANG INVESTMENT BANK BERHAD | H171: MYR | I171: 5110 | J171: UOAREIT | K171: 212208.88 | L171: 475.73 | M171: 0 | N171: aishah | O171: 2017-01-31T09:15:39 | P171: PosTrn | Q171: 1
A172: EQT*170100233 | B172: SP | C172: REITS | D172: 2017-01-31 | E172: 2017-01-31 | F172: BR:CIMBINV | G172: CIMB INVESTMENT BANK BHD | H172: MYR | I172: 5180 | J172: CMMT | K172: 1734608.2 | L172: 3460.38 | M172: 0 | N172: aishah | O172: 2017-01-31T09:23:27 | P172: PosTrn | Q172: 1
A173: EQT*170100235 | B173: SP | C173: REITS | D173: 2017-01-31 | E173: 2017-01-31 | F173: BR:AFFINV | G173: AFFIN HWANG INVESTMENT BANK BERHAD | H173: MYR | I173: 5180 | J173: CMMT | K173: 3642492.58 | L173: 7267.06 | M173: 0 | N173: aishah | O173: 2017-01-31T09:26:51 | P173: PosTrn | Q173: 1
A174: EQT*170100237 | B174: SP | C174: REITS | D174: 2017-01-31 | E174: 2017-01-31 | F174: BR:CIMBINV | G174: CIMB INVESTMENT BANK BHD | H174: MYR | I174: 5227 | J174: IGB | K174: 4015394.12 | L174: 8011.28 | M174: 0 | N174: aishah | O174: 2017-01-31T09:33:26 | P174: PosTrn | Q174: 1
A175: EQT*170100238 | B175: SP | C175: REITS | D175: 2017-01-31 | E175: 2017-01-31 | F175: BR:CIMBINV | G175: CIMB INVESTMENT BANK BHD | H175: MYR | I175: 5235SS | J175: KLCC | K175: 10686503.16 | L175: 10673.93 | M175: 0 | N175: aishah | O175: 2017-01-31T09:34:00 | P175: PosTrn | Q175: 1
A176: EQT*170100239 | B176: SP | C176: REITS | D176: 2017-01-31 | E176: 2017-01-31 | F176: BR:NOMURASECMY | G176: NOMURA SECURITIES MALAYSIA SDN BHD | H176: MYR | I176: 5180 | J176: CMMT | K176: 813201.63 | L176: 1824.32 | M176: 0 | N176: aishah | O176: 2017-01-31T09:56:50 | P176: PosTrn | Q176: 1
A177: EQT*170100240 | B177: SP | C177: REITS | D177: 2017-01-31 | E177: 2017-01-31 | F177: BR:NOMURASECMY | G177: NOMURA SECURITIES MALAYSIA SDN BHD | H177: MYR | I177: 5227 | J177: IGB | K177: 5256510 | L177: 5250 | M177: 0 | N177: aishah | O177: 2017-01-31T10:02:46 | P177: FoTrn | Q177: 1
A178: EQT*170100241 | B178: SP | C178: REITS | D178: 2017-01-31 | E178: 2017-01-31 | F178: BR:NOMURASECMY | G178: NOMURA SECURITIES MALAYSIA SDN BHD | H178: MYR | I178: 5176 | J178: SUNREIT | K178: 1784539.64 | L178: 3560 | M178: 0 | N178: aishah | O178: 2017-01-31T10:03:05 | P178: PosTrn | Q178: 1
A179: EQT*170100242 | B179: SP | C179: GROWTH | D179: 2017-01-31 | E179: 2017-01-31 | F179: BR:TASEC | G179: TA SECURITIES HOLDINGS BHD | H179: MYR | I179: 8664 | J179: SPSETIA | K179: 4532846.64 | L179: 9044 | M179: 0 | N179: aishah | O179: 2017-01-31T10:25:25 | P179: PosTrn | Q179: 1
A180: EQT*170100243 | B180: SP | C180: REITS | D180: 2017-01-31 | E180: 2017-01-31 | F180: BR:TASEC | G180: TA SECURITIES HOLDINGS BHD | H180: MYR | I180: 5212 | J180: PAVILION | K180: 1924880.96 | L180: 3840 | M180: 0 | N180: aishah | O180: 2017-01-31T11:09:08 | P180: PosTrn | Q180: 1
A181: EQT*170100246 | B181: SP | C181: REITS | D181: 2017-01-31 | E181: 2017-01-31 | F181: BR:NOMURASECMY | G181: NOMURA SECURITIES MALAYSIA SDN BHD | H181: MYR | I181: 5227 | J181: IGB | K181: 1752170 | L181: 1750 | M181: 0 | N181: ahmad | O181: 2017-01-31T15:30:52 | P181: FoTrn | Q181: 1
A182: EQT*170100247 | B182: SS | C182: FUND | D182: 2017-01-31 | E182: 2017-01-31 | F182: N/A | G182: Not Applicable | H182: MYR | I182: ISMMF | J182: IVCAP | K182: 21949175.28 | L182: 0 | M182: -101329.1 | N182: affidatul | O182: 2017-01-31 | P182: PosTrn | Q182: 1
A183: EQT*170100248 | B183: SS | C183: REITS | D183: 2017-01-31 | E183: 2017-01-31 | F183: BR:KAFSEC | G183: KAF-SEAGROATT & CAMPBELL SECURITIES SDN BHD | H183: MYR | I183: 5212 | J183: PAVILION | K183: 804551.86 | L183: 1815.6 | M183: -50097.79 | N183: aishah | O183: 2017-01-31T16:58:22 | P183: PosTrn | Q183: 1
A184: EQT*170100249 | B184: SP | C184: REITS | D184: 2017-01-31 | E184: 2017-01-31 | F184: BR:NOMURASECMY | G184: NOMURA SECURITIES MALAYSIA SDN BHD | H184: MYR | I184: 5227 | J184: IGB | K184: 7008680 | L184: 7000 | M184: 0 | N184: system | O184: 2017-01-31T17:01:18 | P184: PosTrn | Q184: 1
A185: EQT*170200001 | B185: SS | C185: VALUE | D185: 2017-02-02 | E185: 2017-02-02 | F185: BR:KENANGAINV | G185: KENANGA INVESTMENT BANK BHD | H185: MYR | I185: 2445 | J185: KLK | K185: 9708436.8 | L185: 9720 | M185: -143989.88 | N185: ahmad | O185: 2017-02-02T09:23:28 | P185: PosTrn | Q185: 2
A186: EQT*170200002 | B186: SP | C186: REITS | D186: 2017-02-02 | E186: 2017-02-02 | F186: BR:NOMURASECMY | G186: NOMURA SECURITIES MALAYSIA SDN BHD | H186: MYR | I186: 5227 | J186: IGB | K186: 5256825 | L186: 5250 | M186: 0 | N186: aishah | O186: 2017-02-02T11:07:10 | P186: PosTrn | Q186: 2
A187: EQT*170200003 | B187: SP | C187: REITS | D187: 2017-02-02 | E187: 2017-02-02 | F187: BR:NOMURASECMY | G187: NOMURA SECURITIES MALAYSIA SDN BHD | H187: MYR | I187: 5180 | J187: CMMT | K187: 2793369.84 | L187: 5572.75 | M187: 0 | N187: aishah | O187: 2017-02-02T11:07:32 | P187: PosTrn | Q187: 2
A188: EQT*170200004 | B188: SP | C188: REITS | D188: 2017-02-02 | E188: 2017-02-02 | F188: BR:MACQUARIE | G188: MACQUARIE CAPITAL SECURITIES (MALAYSIA) SDN BHD | H188: MYR | I188: 5180 | J188: CMMT | K188: 3613794.49 | L188: 7209.78 | M188: 0 | N188: aishah | O188: 2017-02-02T11:23:36 | P188: PosTrn | Q188: 2
A189: EQT*170200005 | B189: SP | C189: REITS | D189: 2017-02-02 | E189: 2017-02-02 | F189: BR:HLGINV | G189: HONG LEONG INVESTMENT BANK BHD | H189: MYR | I189: 5180 | J189: CMMT | K189: 3873451.68 | L189: 7728 | M189: 0 | N189: aishah | O189: 2017-02-02T15:01:31 | P189: PosTrn | Q189: 2
A190: EQT*170200006 | B190: SP | C190: REITS | D190: 2017-02-02 | E190: 2017-02-02 | F190: BR:HLGINV | G190: HONG LEONG INVESTMENT BANK BHD | H190: MYR | I190: 5110 | J190: UOAREIT | K190: 59118.21 | L190: 132.53 | M190: 0 | N190: aishah | O190: 2017-02-02T15:01:51 | P190: PosTrn | Q190: 2
A191: EQT*170200007 | B191: SP | C191: REITS | D191: 2017-02-02 | E191: 2017-02-02 | F191: BR:HLGINV | G191: HONG LEONG INVESTMENT BANK BHD | H191: MYR | I191: 5227 | J191: IGB | K191: 5253821.82 | L191: 5247 | M191: 0 | N191: aishah | O191: 2017-02-02T15:02:12 | P191: PosTrn | Q191: 2
A192: EQT*170200009 | B192: SP | C192: REITS | D192: 2017-02-02 | E192: 2017-02-02 | F192: BR:NOMURASECMY | G192: NOMURA SECURITIES MALAYSIA SDN BHD | H192: MYR | I192: 5110 | J192: UOAREIT | K192: 266919 | L192: 598.5 | M192: 0 | N192: aishah | O192: 2017-02-02T15:57:50 | P192: PosTrn | Q192: 2
A193: EQT*170200010 | B193: SP | C193: REITS | D193: 2017-02-02 | E193: 2017-02-02 | F193: BR:NOMURASECMY | G193: NOMURA SECURITIES MALAYSIA SDN BHD | H193: MYR | I193: 5235SS | J193: KLCC | K193: 3059720.98 | L193: 6104.16 | M193: 0 | N193: aishah | O193: 2017-02-02T15:58:14 | P193: PosTrn | Q193: 2
A194: EQT*170200011 | B194: SP | C194: REITS | D194: 2017-02-02 | E194: 2017-02-02 | F194: BR:CREDITSUISSEMY | G194: CREDIT SUISSE SECURITIES (M) SDN BHD | H194: MYR | I194: 5227 | J194: IGB | K194: 5256825 | L194: 5250 | M194: 0 | N194: aishah | O194: 2017-02-02T16:23:03 | P194: PosTrn | Q194: 2
A195: EQT*170200012 | B195: SP | C195: REITS | D195: 2017-02-02 | E195: 2017-02-02 | F195: BR:MACQUARIE | G195: MACQUARIE CAPITAL SECURITIES (MALAYSIA) SDN BHD | H195: MYR | I195: 5235SS | J195: KLCC | K195: 785827.67 | L195: 1762.9 | M195: 0 | N195: aishah | O195: 2017-02-02T17:10:03 | P195: PosTrn | Q195: 2
A196: EQT*170200013 | B196: SS | C196: VALUE | D196: 2017-02-03 | E196: 2017-02-03 | F196: BR:BIMBSEC | G196: BIMB SECURITIES SDN BHD | H196: MYR | I196: 2445 | J196: KLK | K196: 4697915.86 | L196: 9418.32 | M196: -87852.45 | N196: ahmad | O196: 2017-02-03T08:56:47 | P196: PosTrn | Q196: 2
A197: EQT*170200014 | B197: SP | C197: REITS | D197: 2017-02-03 | E197: 2017-02-03 | F197: BR:MIDFINV | G197: MIDF AMANAH INVESTMENT BANK BHD | H197: MYR | I197: 5235SS | J197: KLCC | K197: 6351790.44 | L197: 6343.81 | M197: 0 | N197: faris | O197: 2017-02-03T09:54:14 | P197: PosTrn | Q197: 2
A198: EQT*170200015 | B198: SP | C198: REITS | D198: 2017-02-03 | E198: 2017-02-03 | F198: BR:ALLIANCEINV | G198: ALLIANCE INVESTMENT BANK BERHAD | H198: MYR | I198: 5180 | J198: CMMT | K198: 5062218.94 | L198: 5055.6 | M198: 0 | N198: aishah | O198: 2017-02-03T11:01:51 | P198: PosTrn | Q198: 2
A199: EQT*170200016 | B199: SP | C199: REITS | D199: 2017-02-03 | E199: 2017-02-03 | F199: BR:ALLIANCEINV | G199: ALLIANCE INVESTMENT BANK BERHAD | H199: MYR | I199: 5227 | J199: IGB | K199: 5256825 | L199: 5250 | M199: 0 | N199: aishah | O199: 2017-02-03T11:02:17 | P199: PosTrn | Q199: 2
A200: EQT*170200017 | B200: SS | C200: VALUE | D200: 2017-02-06 | E200: 2017-02-06 | F200: BR:KAFSEC | G200: KAF-SEAGROATT & CAMPBELL SECURITIES SDN BHD | H200: MYR | I200: 5398 | J200: GAMUDA | K200: 11848166.28 | L200: 11862 | M200: -116185.82 | N200: aishah | O200: 2017-02-06T08:06:42 | P200: PosTrn | Q200: 2
A201: EQT*170200018 | B201: SS | C201: DIVIDEND | D201: 2017-02-06 | E201: 2017-02-06 | F201: BR:AFFINV | G201: AFFIN HWANG INVESTMENT BANK BERHAD | H201: MYR | I201: 6947 | J201: DIGI | K201: 6112252.8 | L201: 6120 | M201: -187849.23 | N201: aishah | O201: 2017-02-06T11:08:57 | P201: PosTrn | Q201: 2
... 1443 more rows

Sheet Brokerage Fees by Brokers
A2: SUMMARY OF BROKERAGE FEES
A3: =UPPER(TEXT(StartDate,"MMMM yyyy")) & " TO " & UPPER(TEXT(ValueDate,"MMMM yyyy")) -> JANUARY 2017 TO NOVEMBER 2017
A5: Broker | B5: Jan | C5: Feb | D5: Mar | E5: Apr | F5: May | G5: June | H5: July | I5: Aug | J5: Sept | K5: Oct | L5: Nov | M5: Dec | N5: ="Brokerage Fees " & YEAR(ValueDate) & " (RM)" -> Brokerage Fees 2017 (RM) | P5: Rank
O6: %
E7: Apr | F7: May | H7: July | I7: Aug | L7: Nov | M7: Dec | O7: =YEAR(ValueDate) -> 2017
A8: MAYBANK INVESTMENT BANK | B8: 45875.17 | C8: 25568.46 | D8: 182181.39 | E8: 88370.02 | F8: 99875.95 | G8: 73658.67 | H8: 110833.42 | I8: 154079.14 | J8: 59181.02 | K8: 43961.98 | L8: 10176.76 | M8: 0 | N8: 893761.98 | O8: 0.081898568 | P8: 1
A9: CIMB INVESTMENT BANK BHD | B9: 173174.04 | C9: 30030.04 | D9: 113226.86 | E9: 110109.43 | F9: 133346.26 | G9: 79185.49 | H9: 38031.49 | I9: 74308.94 | J9: 51989.57 | K9: 59975.66 | L9: 29095.45 | M9: 0 | N9: 892473.23 | O9: 0.08178047529 | P9: 2
A10: AFFIN HWANG INVESTMENT BANK BERHAD | B10: 62062.98 | C10: 111352 | D10: 103863.07 | E10: 80352.34 | F10: 78179.71 | G10: 102733.92 | H10: 97255.18 | I10: 84011.69 | J10: 66199.22 | K10: 70914.71 | L10: 24689.44 | M10: 0 | N10: 881614.26 | O10: 0.0807854295 | P10: 3
A11: KAF-SEAGROATT & CAMPBELL SECURITIES SDN BHD | B11: 91241.99 | C11: 29046.59 | D11: 124037.55 | E11: 97926.18 | F11: 159858.64 | G11: 52530.43 | H11: 67130.25 | I11: 79671.24 | J11: 79502.36 | K11: 36585.03 | L11: 25003.28 | M11: 0 | N11: 842533.54 | O11: 0.07720432505 | P11: 4
A12: RHB INVESTMENT BANK BERHAD | B12: 28001.54 | C12: 74734.91 | D12: 163430.09 | E12: 83949.59 | F12: 117709.91 | G12: 127591.77 | H12: 70223.46 | I12: 57615.34 | J12: 42061.2 | K12: 26927.52 | L12: 35002.36 | M12: 0 | N12: 827247.69 | O12: 0.07580362861 | P12: 5
A13: ALLIANCE INVESTMENT BANK BERHAD | B13: 4341.53 | C13: 84078.62 | D13: 157720.98 | E13: 76715.75 | F13: 137259.41 | G13: 36449.43 | H13: 28726.64 | I13: 39130.05 | J13: 59964.37 | K13: 73466.38 | L13: 34462.68 | M13: 0 | N13: 732315.84 | O13: 0.06710468778 | P13: 6
A14: HONG LEONG INVESTMENT BANK BHD | B14: 77807.4 | C14: 96382.84 | D14: 104699.77 | E14: 13282.79 | F14: 90240.7 | G14: 119382.05 | H14: 59278.41 | I14: 81593.99 | J14: 16155.85 | K14: 46712.93 | L14: 16800.65 | M14: 0 | N14: 722337.38 | O14: 0.06619032624 | P14: 7
A15: TA SECURITIES HOLDINGS BHD | B15: 37704.85 | C15: 53001.19 | D15: 64355.64 | E15: 29126.6 | F15: 156344.73 | G15: 44206.36 | H15: 35997.32 | I15: 144160.65 | J15: 98407.2 | K15: 30898.21 | L15: 25113.51 | M15: 0 | N15: 719316.26 | O15: 0.06591349034 | P15: 8
A16: MIDF AMANAH INVESTMENT BANK BHD | B16: 8143 | C16: 36171.97 | D16: 68194.62 | E16: 114615.55 | F16: 99859.67 | G16: 118963.15 | H16: 27290.5 | I16: 113804.53 | J16: 20295.41 | K16: 6184.3 | L16: 26572.9 | M16: 0 | N16: 640095.6 | O16: 0.05865422137 | P16: 9
A17: NOMURA SECURITIES MALAYSIA SDN BHD | B17: 74662.1 | C17: 54779.53 | D17: 103457.95 | E17: 106904.38 | F17: 45609.18 | G17: 67573.98 | H17: 22291.75 | I17: 69407.64 | J17: 21299.88 | K17: 26559.68 | L17: 44676.59 | M17: 0 | N17: 637222.66 | O17: 0.05839096372 | P17: 10
A18: MACQUARIE CAPITAL SECURITIES (MALAYSIA) SDN BHD | B18: 31419.6 | C18: 53958.59 | D18: 140394.47 | E18: 117196.65 | F18: 86321.04 | G18: 25165.91 | H18: 75654.44 | I18: 71156.93 | J18: 0 | K18: 24763.18 | L18: 9097.2 | M18: 0 | N18: 635128.01 | O18: 0.05819902354 | P18: 11
A19: KENANGA INVESTMENT BANK BHD | B19: 35374.82 | C19: 25392.28 | D19: 22120 | E19: 60158.12 | F19: 67503.58 | G19: 50597.14 | H19: 170699.98 | I19: 75466.44 | J19: 14690.68 | K19: 22376.75 | L19: 13550.8 | M19: 0 | N19: 557930.59 | O19: 0.0511251512 | P19: 12
A20: CREDIT SUISSE SECURITIES (M) SDN BHD | B20: 3610 | C20: 15499.05 | D20: 185550.4 | E20: 63357 | F20: 28788 | G20: 0 | H20: 0 | I20: 108076.21 | J20: 30893.51 | K20: 48980.28 | L20: 1985.15 | M20: 0 | N20: 486739.6 | O20: 0.04460166926 | P20: 13
A21: AMINVESTMENT BANK BHD | B21: 5657 | C21: 13067.93 | D21: 70755.57 | E21: 130402.31 | F21: 69365.99 | G21: 98467.52 | H21: 30330.82 | I21: 0 | J21: 43042.05 | K21: 0 | L21: 2129.31 | M21: 0 | N21: 463218.5 | O21: 0.04244634776 | P21: 14
A22: BIMB SECURITIES SDN BHD | B22: 15071.79 | C22: 64837.24 | D22: 22454.17 | E22: 88337.41 | F22: 22825.8 | G22: 53692.98 | H22: 32788.66 | I22: 15765.96 | J22: 0 | K22: 29454.91 | L22: 25215.9 | M22: 0 | N22: 370444.82 | O22: 0.03394516769 | P22: 15
A23: UBS SECURITIES MALAYSIA SDN BHD | B23: 1403.83 | C23: 20015.59 | D23: 25934.16 | E23: 36580.76 | F23: 28716.83 | G23: 46026.78 | H23: 54120.04 | I23: 22162.19 | J23: 20148.13 | K23: 27302.28 | L23: 28260.26 | M23: 0 | N23: 310670.85 | O23: 0.02846786762 | P23: 16
A24: PUBLIC INVESTMENT BANK BERHAD | B24: 0 | C24: 0 | D24: 0 | E24: 22651.38 | F24: 58497.7 | G24: 39277.12 | H24: 67091.79 | I24: 35236.78 | J24: 12679 | K24: 8508.66 | L24: 21367.71 | M24: 0 | N24: 265310.14 | O24: 0.0243113055 | P24: 17
A25: CLSA SECURITIES MALAYSIA SDN BHD | B25: 0 | C25: 0 | D25: 0 | E25: 0 | F25: 0 | G25: 0 | H25: 0 | I25: 0 | J25: 0 | K25: 0 | L25: 18223.68 | M25: 0 | N25: 18223.68 | O25: 0.001669900185 | P25: 18
A26: UOB KAY HIAN SECURITIES (M) SDN BHD | B26: 0 | C26: 0 | D26: 0 | E26: 0 | F26: 0 | G26: 0 | H26: 0 | I26: 0 | J26: 0 | K26: 10336.24 | L26: 6114.63 | M26: 0 | N26: 16450.87 | O26: 0.001507451341 | P26: 19
A54: GRAND TOTAL | B54: =SUM(B8:B52) -> 695551.64 | C54: =SUM(C8:C52) -> 787916.83 | D54: 1652376.69 | E54: 1320036.26 | F54: 1480303.1 | G54: 1135502.7 | H54: 987744.15 | I54: 1225647.72 | J54: 636509.45 | K54: 593908.7 | L54: 397538.26 | M54: 0 | N54: =SUM(N8:N52) -> 10913035.5 | O54: =SUM(O8:O52) -> 1
A57: Prepared by :
A59: Verified by :
A61: Confirmed by :

Sheet Trade Allocation by Brokers
A3: TRADE ALLOCATION BY BROKER
A4: =UPPER(TEXT(StartDate,"MMMM yyyy")) & " TO " & UPPER(TEXT(ValueDate,"MMMM yyyy")) -> JANUARY 2017 TO NOVEMBER 2017
A6: Broker | B6: Purchases (RM) | N6: Sales (RM) | Z6: Year to Date
B8: Jan | C8: Feb | D8: Mar | E8: Apr | F8: May | G8: June | H8: July | I8: Aug | J8: Sept | K8: Oct | L8: Nov | M8: Dec | N8: Jan | O8: Feb | P8: Mar | Q8: Apr | R8: May | S8: June | T8: July | U8: Aug | V8: Sept | W8: Oct | X8: Nov | Y8: Dec | Z8: (RM) | AA8: % | AB8: Rank
L9: November
A10: MAYBANK INVESTMENT BANK | B10: 16872762.67 | C10: 15958933.83 | D10: 61137557.37 | E10: 61115512 | F10: 20084808.75 | G10: 25351614.66 | H10: 74103819.94 | I10: 100386420.9 | J10: 28277740.25 | K10: 40528157.44 | L10: 0 | M10: 0 | N10: 15043005.9 | O10: 4230663.35 | P10: 97080701.33 | Q10: 24467175.54 | R10: 56733654.77 | S10: 34458282.05 | T10: 31048027.94 | U10: 36942031.64 | V10: 16607171.2 | W10: 0 | X10: 10991979.28 | Y10: 0 | Z10: 771420020.9 | AA10: 0.08322200517 | AB10: 1
A11: CIMB INVESTMENT BANK BHD | B11: 88381359.17 | C11: 13200323.14 | D11: 25870388.27 | E11: 96699553.69 | F11: 82352493.76 | G11: 41639618.52 | H11: 20711320.84 | I11: 58605461.33 | J11: 4271923.45 | K11: 45947533.1 | L11: 13371175.77 | M11: 0 | N11: 24767153.77 | O11: 10408529.44 | P11: 58505321.01 | Q11: 9062821.88 | R11: 28826372.23 | S11: 10934691.92 | T11: 9608284.27 | U11: 3250146.12 | V11: 39018208.38 | W11: 9541114.35 | X11: 12779977.76 | Y11: 0 | Z11: 707753772.2 | AA11: 0.07635359012 | AB11: 2
A12: AFFIN HWANG INVESTMENT BANK BERHAD | B12: 22950647.39 | C12: 37957722.2 | D12: 40230821.24 | E12: 17956724.27 | F12: 37142851.74 | G12: 60101307.55 | H12: 31963222.72 | I12: 42226552.08 | J12: 15857829.69 | K12: 16587931.94 | L12: 0 | M12: 0 | N12: 10788102.35 | O12: 63589974.22 | P12: 36254252.46 | Q12: 50049768.28 | R12: 36359154.77 | S12: 15127590.08 | T12: 40255318.72 | U12: 27401415.39 | V12: 33607045.44 | W12: 44467683.43 | X12: 21158712.17 | Y12: 0 | Z12: 702034628.1 | AA12: 0.07573659987 | AB12: 3
A13: RHB INVESTMENT BANK BERHAD | B13: 11807244.74 | C13: 18913938.73 | D13: 24262903.29 | E13: 22524824.46 | F13: 54437776.84 | G13: 43400828.28 | H13: 39709662.62 | I13: 18361953.47 | J13: 12610169.96 | K13: 17398460.17 | L13: 14762048.53 | M13: 0 | N13: 7903206.08 | O13: 39602995.66 | P13: 103876018 | Q13: 54357554.45 | R13: 45794618.57 | S13: 70615295.52 | T13: 21293826.95 | U13: 28764568.62 | V13: 29434405.09 | W13: 9538617 | X13: 11706677.74 | Y13: 0 | Z13: 701077594.8 | AA13: 0.07563335361 | AB13: 4
A14: KAF-SEAGROATT & CAMPBELL SECURITIES SDN BHD | B14: 20551464.63 | C14: 6846228.5 | D14: 39003717.25 | E14: 82432109.22 | F14: 79207800.73 | G14: 20844263.24 | H14: 17259732.54 | I14: 41871766.65 | J14: 50514080.16 | K14: 19230129.5 | L14: 14130433.88 | M14: 0 | N14: 77980181.09 | O14: 20377953.77 | P14: 62289213.11 | Q14: 6471045.51 | R14: 54298959.32 | S14: 5169285.59 | T14: 31714844.74 | U14: 13932855.71 | V14: 21455176.93 | W14: 11796210.08 | X14: 3525860.61 | Y14: 0 | Z14: 700903312.8 | AA14: 0.07561455179 | AB14: 5
A15: ALLIANCE INVESTMENT BANK BERHAD | B15: 2125348.61 | C15: 51172920.18 | D15: 79377919.4 | E15: 75570076.61 | F15: 84827256.35 | G15: 16717724.14 | H15: 11004550.49 | I15: 33726470.11 | J15: 0 | K15: 24561482.19 | L15: 0 | M15: 0 | N15: 0 | O15: 10871775.42 | P15: 51177306.86 | Q15: 0 | R15: 47220658 | S15: 19179386.94 | T15: 13284642 | U15: 1942751.51 | V15: 50126042.36 | W15: 45705966.25 | X15: 30850970.7 | Y15: 0 | Z15: 649443248.1 | AA15: 0.07006295908 | AB15: 6
A16: HONG LEONG INVESTMENT BANK BHD | B16: 40236014.47 | C16: 25626714.02 | D16: 25674592.85 | E16: 5531298.75 | F16: 37298402.75 | G16: 73984010.08 | H16: 49915295.47 | I16: 58266599.67 | J16: 6313789.7 | K16: 347817.59 | L16: 0 | M16: 0 | N16: 987423.21 | O16: 50394904.91 | P16: 60842727.71 | Q16: 958462.71 | R16: 39136046.52 | S16: 35471289.31 | T16: 7526796.94 | U16: 21207094.43 | V16: 4913299 | W16: 41297732.61 | X16: 21612102.14 | Y16: 0 | Z16: 607542414.8 | AA16: 0.06554263128 | AB16: 7
A17: TA SECURITIES HOLDINGS BHD | B17: 23020488.7 | C17: 12928620.78 | D17: 32081874.27 | E17: 16604717.77 | F17: 98142343.79 | G17: 1307663.69 | H17: 0 | I17: 109593021.5 | J17: 22740991.37 | K17: 2611451.02 | L17: 0 | M17: 0 | N17: 5536334.27 | O17: 29418900.18 | P17: 14722488.22 | Q17: 9253319.74 | R17: 40118542.7 | S17: 30291468.87 | T17: 29877796.4 | U17: 25538246.83 | V17: 49807561.17 | W17: 25462237.38 | X17: 23431353.04 | Y17: 0 | Z17: 602489421.7 | AA17: 0.06499750643 | AB17: 8
A18: MIDF AMANAH INVESTMENT BANK BHD | B18: 0 | C18: 13656059.18 | D18: 20362673.28 | E18: 77425577.54 | F18: 53917684.59 | G18: 98270420.14 | H18: 27324467.93 | I18: 42803527.2 | J18: 6319049.77 | K18: 6192115.36 | L18: 4555694.98 | M18: 0 | N18: 4061608.42 | O18: 10098307.62 | P18: 33927808.17 | Q18: 34902693.55 | R18: 42520008.84 | S18: 14867207.5 | T18: 0 | U18: 60605620.55 | V18: 6974925.79 | W18: 0 | X18: 14866624.37 | Y18: 0 | Z18: 573652074.8 | AA18: 0.06188648809 | AB18: 9
A19: MACQUARIE CAPITAL SECURITIES (MALAYSIA) SDN BHD | B19: 6913040.03 | C19: 21017417.71 | D19: 38413754.2 | E19: 96325270 | F19: 32487508.36 | G19: 12732174.14 | H19: 64118428.23 | I19: 58410387.8 | J19: 0 | K19: 20285303.97 | L19: 9108103.03 | M19: 0 | N19: 17086674.97 | O19: 19672065.86 | P19: 85753596.47 | Q19: 16476329.84 | R19: 41784427.84 | S19: 3629510.41 | T19: 5670725.63 | U19: 9004695.54 | V19: 0 | W19: 0 | X19: 0 | Y19: 0 | Z19: 558889414 | AA19: 0.06029386903 | AB19: 10
A20: NOMURA SECURITIES MALAYSIA SDN BHD | B20: 52024858.59 | C20: 24915537.98 | D20: 50236101.67 | E20: 85991668.97 | F20: 15188890.17 | G20: 45131294.93 | H20: 1248433.79 | I20: 22900889.58 | J20: 18875045.03 | K20: 16449759.87 | L20: 17763619.51 | M20: 0 | N20: 6296580.21 | O20: 11837363.52 | P20: 45465857.01 | Q20: 1365941.2 | R20: 26090555.22 | S20: 11563463.29 | T20: 9809610.27 | U20: 40462681.6 | V20: 1219858.22 | W20: 8193213.8 | X20: 16391596.2 | Y20: 0 | Z20: 529422820.6 | AA20: 0.05711496659 | AB20: 11
A21: KENANGA INVESTMENT BANK BHD | B21: 9151024.98 | C21: 4275196.61 | D21: 10328753 | E21: 24078752.9 | F21: 34278268.55 | G21: 21005066.98 | H21: 102791400.4 | I21: 51696748.83 | J21: 0 | K21: 15669019.4 | L21: 0 | M21: 0 | N21: 16949353.28 | O21: 13193689.99 | P21: 6619166.1 | Q21: 22765529.81 | R21: 23364741.09 | S21: 28759959.42 | T21: 48600974.56 | U21: 15233329.78 | V21: 12252338.2 | W21: 0 | X21: 12435878.93 | Y21: 0 | Z21: 473449192.8 | AA21: 0.05107644358 | AB21: 12
A22: AMINVESTMENT BANK BHD | B22: 0 | C22: 2332136.52 | D22: 20386085.15 | E22: 96760512.15 | F22: 26512807.16 | G22: 22999778.07 | H22: 30365485.67 | I22: 0 | J22: 14534530.09 | K22: 0 | L22: 0 | M22: 0 | N22: 5490942.28 | O22: 6679908.74 | P22: 31752832.43 | Q22: 27189786.91 | R22: 42835789.9 | S22: 68295384.75 | T22: 0 | U22: 0 | V22: 28427875.22 | W22: 0 | X22: 7094182.93 | Y22: 0 | Z22: 431658038 | AA22: 0.04656794806 | AB22: 13
A23: CREDIT SUISSE SECURITIES (M) SDN BHD | B23: 2414992.98 | C23: 13010969.64 | D23: 85109110.45 | E23: 47718044.9 | F23: 28819775.28 | G23: 0 | H23: 0 | I23: 23922083.87 | J23: 0 | K23: 13346029.12 | L23: 0 | M23: 0 | N23: 0 | O23: 0 | P23: 84848136.19 | Q23: 15672846.48 | R23: 0 | S23: 0 | T23: 0 | U23: 59118930.84 | V23: 24953256.25 | W23: 31803325.02 | X23: 879504.82 | Y23: 0 | Z23: 431617005.8 | AA23: 0.04656352145 | AB23: 14
A24: BIMB SECURITIES SDN BHD | B24: 0 | C24: 21524218.13 | D24: 16141789.01 | E24: 78894333.44 | F24: 13793864.68 | G24: 33980800.21 | H24: 26546362.75 | I24: 3601376.1 | J24: 0 | K24: 375841.41 | L24: 4850218.04 | M24: 0 | N24: 10964295.9 | O24: 25964803.36 | P24: 3158077.3 | Q24: 1098115.76 | R24: 4513049.33 | S24: 9385152.57 | T24: 5741246.48 | U24: 8570604.18 | V24: 0 | W24: 28579151.28 | X24: 15519509.19 | Y24: 0 | Z24: 313202809.1 | AA24: 0.03378881167 | AB24: 15
A25: PUBLIC INVESTMENT BANK BERHAD | B25: 0 | C25: 0 | D25: 0 | E25: 22679168.46 | F25: 23325958 | G25: 1941305.92 | H25: 43006532.11 | I25: 9471287.6 | J25: 12693699.74 | K25: 0 | L25: 19272124.15 | M25: 0 | N25: 0 | O25: 0 | P25: 0 | Q25: 0 | R25: 31397870.44 | S25: 33535915.45 | T25: 19281278.82 | U25: 25748196.61 | V25: 0 | W25: 8498380.82 | X25: 7058194.38 | Y25: 0 | Z25: 257909912.5 | AA25: 0.02782372701 | AB25: 16
A26: UBS SECURITIES MALAYSIA SDN BHD | B26: 0 | C26: 4266833.89 | D26: 12290058.43 | E26: 18669532.09 | F26: 13407295.17 | G26: 12923359.19 | H26: 9310567.42 | I26: 17034620.96 | J26: 6320451.25 | K26: 6703808.54 | L26: 4865450.27 | M26: 0 | N26: 621801.53 | O26: 5649072.74 | P26: 7519060 | Q26: 9355333.87 | R26: 783604.41 | S26: 17450005.14 | T26: 39331394.25 | U26: 5079842.32 | V26: 10178933.57 | W26: 14293343.43 | X26: 12338611.62 | Y26: 0 | Z26: 228392980.1 | AA26: 0.02463939392 | AB26: 17
A27: CLSA SECURITIES MALAYSIA SDN BHD | B27: 0 | C27: 0 | D27: 0 | E27: 0 | F27: 0 | G27: 0 | H27: 0 | I27: 0 | J27: 0 | K27: 0 | L27: 9100094.55 | M27: 0 | N27: 0 | O27: 0 | P27: 0 | Q27: 0 | R27: 0 | S27: 0 | T27: 0 | U27: 0 | V27: 0 | W27: 0 | X27: 8218063.21 | Y27: 0 | Z27: 17318157.76 | AA27: 0.001868310098 | AB27: 18
A28: UOB KAY HIAN SECURITIES (M) SDN BHD | B28: 0 | C28: 0 | D28: 0 | E28: 0 | F28: 0 | G28: 0 | H28: 0 | I28: 0 | J28: 0 | K28: 8181839.65 | L28: 3064966.74 | M28: 0 | N28: 0 | O28: 0 | P28: 0 | Q28: 0 | R28: 0 | S28: 0 | T28: 0 | U28: 0 | V28: 0 | W28: 0 | X28: 0 | Y28: 0 | Z28: 11246806.39 | AA28: 0.001213323163 | AB28: 19
A54: GRAND TOTAL | B54: =SUM(B10:B52) -> 296449247 | C54: =SUM(C10:C52) -> 287603771 | D54: 580908099.1 | E54: 926977677.2 | F54: 735225786.7 | G54: 532331229.7 | H54: 549379282.9 | I54: 692879167.7 | J54: 199329300.5 | K54: 254416680.3 | L54: 114843929.4 | M54: 0 | N54: 204476663.3 | O54: 321990908.8 | P54: 783792562.4 | Q54: 283446725.5 | R54: 561778053.9 | S54: 408733888.8 | T54: 313044768 | U54: 382803011.7 | V54: 328976096.8 | W54: 279176975.4 | X54: =SUM(X10:X52) -> 230859799.1 | Y54: =SUM(Y10:Y52) -> 0 | Z54: =SUM(Z10:Z52) -> 9269423625 | AA54: =SUM(AA9:AA53) -> 1

Sheet Trade Allocation by PM
A3: TRADE ALLOCATION BY PORTFOLIO MANAGER
A4: =UPPER(TEXT(StartDate,"MMMM yyyy")) & " TO " & UPPER(TEXT(ValueDate,"MMMM yyyy")) -> JANUARY 2017 TO NOVEMBER 2017
A6: Broker | B6: Purchases (RM) | N6: Sales (RM) | Z6: Year to Date
B8: Jan | C8: Feb | D8: Mar | E8: Apr | F8: May | G8: June | H8: July | I8: Aug | J8: Sept | K8: Oct | L8: Nov | M8: Dec | N8: Jan | O8: Feb | P8: Mar | Q8: Apr | R8: May | S8: June | T8: July | U8: Aug | V8: Sept | W8: Oct | X8: Nov | Y8: Dec | Z8: (RM) | AA8: % | AB8: Rank
L9: November
A10: NOR AISHAH SAAD | B10: 245579522.9 | C10: 200434981.9 | D10: 454700795.8 | E10: 746038731.3 | F10: 615809492.8 | G10: 388463030.9 | H10: 421130188 | I10: 564018806.3 | J10: 165257741.4 | K10: 167057921.3 | L10: 48099773.12 | M10: 0 | N10: 156776414.5 | O10: 200618672.6 | P10: 690568995.9 | Q10: 226388430.6 | R10: 478143967.3 | S10: 346693368.8 | T10: 236191794.9 | U10: 260087663.7 | V10: 257255798.9 | W10: 189723202.1 | X10: 148886883.7 | Y10: 0 | Z10: 7207926179 | AA10: 0.7762370473 | AB10: 1
A11: AHMAD FIRDAUS | B11: 25066793.48 | C11: 54911266.59 | D11: 77504497.5 | E11: 100404497.9 | F11: 34313167 | G11: 11692565.49 | H11: 85772451.02 | I11: 118992828.1 | J11: 2399405.04 | K11: 30282964.32 | L11: 49113116.88 | M11: 0 | N11: 17940502.48 | O11: 71311664.23 | P11: 60733916.07 | Q11: 47995473.07 | R11: 70903196.11 | S11: 22093368.3 | T11: 44896275.83 | U11: 119972673.7 | V11: 60530027.94 | W11: 59221643.08 | X11: 59740036.45 | Y11: 0 | Z11: 1225792331 | AA11: 0.1320082081 | AB11: 2
A12: MUHAMMAD FARIS | B12: 20906743.23 | C12: 26968152.98 | D12: 8148908.8 | E12: 21688080.35 | F12: 63840590.46 | G12: 63676834.13 | H12: 25456694.45 | I12: 9867533.36 | J12: 31672154.03 | K12: 57075794.63 | L12: 17631039.45 | M12: 0 | N12: 7366373.14 | O12: 33739973.57 | P12: 17821576.16 | Q12: 0 | R12: 12153958.39 | S12: 37316275.74 | T12: 27713542.06 | U12: 1179421.28 | V12: 11190270.01 | W12: 30232130.22 | X12: 20692475.55 | Y12: 0 | Z12: 546338522 | AA12: 0.05883636855 | AB12: 3
A13: KHOR WEI RHONG | B13: 1611393.99 | C13: 752009.89 | D13: 32759572.71 | E13: 44000268.79 | F13: 28262536.44 | G13: 64521227.27 | H13: 17019949.4 | I13: 0 | J13: 0 | K13: 0 | L13: 0 | M13: 0 | N13: 6409288.17 | O13: 14988688.37 | P13: 14550562.36 | Q13: 9062821.88 | R13: 576932.18 | S13: 1607944.43 | T13: 0 | U13: 0 | V13: 0 | W13: 0 | X13: 0 | Y13: 0 | Z13: 236123195.9 | AA13: 0.02542861398 | AB13: 4
A14: ANUAR HISHAM | B14: 2557204.33 | C14: 3738778.49 | D14: 10794324.46 | E14: 0 | F14: 0 | G14: 3977571.95 | H14: 0 | I14: 0 | J14: 0 | K14: 0 | L14: 0 | M14: 0 | N14: 2472323.74 | O14: 1331909.99 | P14: 117511.89 | Q14: 0 | R14: 0 | S14: 1022931.49 | T14: 4243155.15 | U14: 1563252.95 | V14: 0 | W14: 0 | X14: 1540403.43 | Y14: 0 | Z14: 33359367.87 | AA14: 0.003592541957 | AB14: 5
A15: RAZIMAH ABDUL RAZAK | B15: 727589.05 | C15: 0 | D15: 0 | E15: 0 | F15: 0 | G15: 0 | H15: 0 | I15: 0 | J15: 0 | K15: 0 | L15: 0 | M15: 0 | N15: 13511761.27 | O15: 0 | P15: 0 | Q15: 0 | R15: 0 | S15: 0 | T15: 0 | U15: 0 | V15: 0 | W15: 0 | X15: 0 | Y15: 0 | Z15: 14239350.32 | AA15: 0.001533466211 | AB15: 6
A54: GRAND TOTAL | B54: =SUM(B10:B53) -> 296449247 | C54: 286805189.8 | D54: 583908099.3 | E54: 912131578.4 | F54: 742225786.7 | G54: 532331229.7 | H54: 549379282.9 | I54: 692879167.7 | J54: 199329300.5 | K54: 254416680.3 | L54: 114843929.5 | M54: 0 | N54: =SUM(N10:N53) -> 204476663.3 | O54: 321990908.8 | P54: 783792562.4 | Q54: 283446725.5 | R54: 561778054 | S54: 408733888.8 | T54: 313044768 | U54: 382803011.7 | V54: 328976096.8 | W54: 279176975.4 | X54: 230859799.1 | Y54: 0 | Z54: =SUM(Z10:Z53) -> 9263778945 | AA54: =SUM(AA9:AA53) -> 0.9976362462
A58: Others:
A59: Redemption - ISMMF | B59: =SUMIFS(InATran!$K:$K,InATran!$I:$I,"ISMMF",InATran!$B:$B,"SP",InATran!$Q:$Q,COLUMN()-1) -> 0 | C59: =SUMIFS(InATran!$K:$K,InATran!$I:$I,"ISMMF",InATran!$B:$B,"SP",InATran!$Q:$Q,COLUMN()-1) -> 0 | D59: =SUMIFS(InATran!$K:$K,InATran!$I:$I,"ISMMF",InATran!$B:$B,"SP",InATran!$Q:$Q,COLUMN()-1) -> 0 | E59: =SUMIFS(InATran!$K:$K,InATran!$I:$I,"ISMMF",InATran!$B:$B,"SP",InATran!$Q:$Q,COLUMN()-1) -> 0 | F59: =SUMIFS(InATran!$K:$K,InATran!$I:$I,"ISMMF",InATran!$B:$B,"SP",InATran!$Q:$Q,COLUMN()-1) -> 0 | G59: =SUMIFS(InATran!$K:$K,InATran!$I:$I,"ISMMF",InATran!$B:$B,"SP",InATran!$Q:$Q,COLUMN()-1) -> 0 | H59: =SUMIFS(InATran!$K:$K,InATran!$I:$I,"ISMMF",InATran!$B:$B,"SP",InATran!$Q:$Q,COLUMN()-1) -> 0 | I59: =SUMIFS(InATran!$K:$K,InATran!$I:$I,"ISMMF",InATran!$B:$B,"SP",InATran!$Q:$Q,COLUMN()-1) -> 0 | J59: =SUMIFS(InATran!$K:$K,InATran!$I:$I,"ISMMF",InATran!$B:$B,"SP",InATran!$Q:$Q,COLUMN()-1) -> 0 | K59: =SUMIFS(InATran!$K:$K,InATran!$I:$I,"ISMMF",InATran!$B:$B,"SP",InATran!$Q:$Q,COLUMN()-1) -> 0 | L59: =SUMIFS(InATran!$K:$K,InATran!$I:$I,"ISMMF",InATran!$B:$B,"SP",InATran!$Q:$Q,COLUMN()-1) -> 0 | M59: =SUMIFS(InATran!$K:$K,InATran!$I:$I,"ISMMF",InATran!$B:$B,"SP",InATran!$Q:$Q,COLUMN()-1) -> 0 | N59: =SUMIFS(InATran!$K:$K,InATran!$I:$I,"ISMMF",InATran!$B:$B,"SS",InATran!$Q:$Q,COLUMN()-13) -> 21949175.28 | O59: =SUMIFS(InATran!$K:$K,InATran!$I:$I,"ISMMF",InATran!$B:$B,"SS",InATran!$Q:$Q,COLUMN()-13) -> 0 | P59: =SUMIFS(InATran!$K:$K,InATran!$I:$I,"ISMMF",InATran!$B:$B,"SS",InATran!$Q:$Q,COLUMN()-13) -> 0 | Q59: =SUMIFS(InATran!$K:$K,InATran!$I:$I,"ISMMF",InATran!$B:$B,"SS",InATran!$Q:$Q,COLUMN()-13) -> 0 | R59: =SUMIFS(InATran!$K:$K,InATran!$I:$I,"ISMMF",InATran!$B:$B,"SS",InATran!$Q:$Q,COLUMN()-13) -> 0 | S59: =SUMIFS(InATran!$K:$K,InATran!$I:$I,"ISMMF",InATran!$B:$B,"SS",InATran!$Q:$Q,COLUMN()-13) -> 0 | T59: =SUMIFS(InATran!$K:$K,InATran!$I:$I,"ISMMF",InATran!$B:$B,"SS",InATran!$Q:$Q,COLUMN()-13) -> 0 | U59: =SUMIFS(InATran!$K:$K,InATran!$I:$I,"ISMMF",InATran!$B:$B,"SS",InATran!$Q:$Q,COLUMN()-13) -> 0 | V59: =SUMIFS(InATran!$K:$K,InATran!$I:$I,"ISMMF",InATran!$B:$B,"SS",InATran!$Q:$Q,COLUMN()-13) -> 0 | W59: =SUMIFS(InATran!$K:$K,InATran!$I:$I,"ISMMF",InATran!$B:$B,"SS",InATran!$Q:$Q,COLUMN()-13) -> 0 | X59: =SUMIFS(InATran!$K:$K,InATran!$I:$I,"ISMMF",InATran!$B:$B,"SS",InATran!$Q:$Q,COLUMN()-13) -> 0 | Y59: =SUMIFS(InATran!$K:$K,InATran!$I:$I,"ISMMF",InATran!$B:$B,"SS",InATran!$Q:$Q,COLUMN()-13) -> 0 | Z59: =SUM(B59:Y59) -> 21949175.28 | AA59: =IFERROR(Z59/TAPMYTD,"") -> 0.002363753816
A62: TOTAL (YTD) | B62: =SUM(B54:B60) -> 296449247 | C62: =SUM(C54:C60) -> 286805189.8 | D62: 583908099.3 | E62: 912131578.4 | F62: 742225786.7 | G62: 532331229.7 | H62: 549379282.9 | I62: 692879167.7 | J62: 199329300.5 | K62: 254416680.3 | L62: 114843929.5 | M62: 0 | N62: =SUM(N54:N60) -> 226425838.5 | O62: =SUM(O54:O60) -> 321990908.8 | P62: 783792562.4 | Q62: 283446725.5 | R62: 561778054 | S62: 408733888.8 | T62: 313044768 | U62: 382803011.7 | V62: 328976096.8 | W62: 279176975.4 | X62: 230859799.1 | Y62: 0 | Z62: =SUM(Z54:Z60) -> 9285728121 | AA62: 1

Sheet Total Purchases & Sales by PM
B3: VALUECAP SDN BHD
B5: ="TOTAL PURCHASES AND SALES BY PORTFOLIO MANAGER FROM " & TEXT(StartDate,"d-MMM-yyyy") & " TO " & TEXT(ValueDate,"d-MMM-yyyy") -> TOTAL PURCHASES AND SALES BY PORTFOLIO MANAGER FROM 1-Jan-2017 TO 30-Nov-2017
C8: Portfolio Manager | D8: Total Purchases (RM) | G8: Total Sales (RM) | I8: Total Capital Gain (RM)
A12: aishah | C12: NOR AISHAH SAAD | E12: 4016590986 | G12: 3191335193 | I12: 125025125.7
A14: razimah | C14: RAZIMAH ABDUL RAZAK | E14: 727589.05 | G14: 13511761.27 | I14: 269522.95
A16: ahmad | C16: AHMAD FIRDAUS | E16: 590453553.2 | G16: 635338777.3 | I16: 16802566.33
A18: anuar | C18: ANUAR HISHAM | E18: 21067879.23 | G18: 12291488.64 | I18: 349604.41
A20: faris | C20: MUHAMMAD FARIS | E20: 346932525.9 | G20: 199405996.1 | I20: 4110543.54
A22: wei.rhong | C22: KHOR WEI RHONG | E22: 188926958.5 | G22: 47196237.39 | I22: 1071955.42
E54: =SUM(E12:E53) -> 5164699492 | G54: =SUM(G12:G53) -> 4099079454 | I54: =SUM(I12:I53) -> 147629318.3
B58: Others:
B60: 1) | C60: Redemption - ISMMF | E60: =SUMIFS(InATran!K:K,InATran!B:B,"SP",InATran!I:I,"ISMMF") -> 0 | G60: =SUMIFS(InATran!K:K,InATran!B:B,"SS",InATran!I:I,"ISMMF") -> 21949175.28 | I60: =-SUMIFS(InATran!M:M,InATran!B:B,"SS",InATran!I:I,"ISMMF") -> 101329.1
C62: TOTAL (YTD) | E62: =E54+E60 -> 5164699492 | G62: =G54+G60 -> 4121028629 | I62: =I54+I60 -> 147730647.4

Sheet Total P&S by Portfolio
B3: VALUECAP SDN BHD
B5: ="TOTAL PURCHASES AND SALES BY PORTFOLIO FROM " & TEXT(StartDate,"d-MMM-yyyy") & " TO " & TEXT(ValueDate,"d-MMM-yyyy") -> TOTAL PURCHASES AND SALES BY PORTFOLIO FROM 1-Jan-2017 TO 30-Nov-2017
C8: Portfolio Manager | D8: Total Purchases (RM) | G8: Total Sales (RM) | I8: Total Capital Gain (RM)
C12: CORE | E12: 784690799.6 | G12: 1045683433 | I12: 34898850.52
C14: DIVIDEND | E14: 887951448.5 | G14: 918563140 | I14: 41483865.31
C16: FUND | E16: 10000000 | G16: 21949175.28 | I16: 101329.1
C18: GROWTH | E18: 1928920696 | G18: 968273780.4 | I18: 32157304.4
C20: INDEX | E20: 0 | G20: 4346493.64 | I20: 208288.78
C22: REITS | E22: 493501257.2 | G22: 6064258.41 | I22: 405917.06
C24: SMALLMIDCAP | E24: 30924850.21 | G24: 71138747.41 | I24: -1219386.06
C26: VALUE | E26: 1044355120 | G26: 1085009600 | I26: 39694478.31
E54: =SUM(E12:E53) -> 5180344172 | G54: =SUM(G12:G53) -> 4121028629 | I54: =SUM(I12:I53) -> 147730647.4

Sheet Brokerage By Brokers History
A2: SUMMARY OF BROKERAGE FEES
A3: JANUARY 2016 TO DECEMBER 2016
A5: Broker | B5: Brokerage Fees | Q5: Brokerage Fees2008 (RM) | S5: Ranking 2008 | T5: Brokerage Fees2009 (RM) | V5: Ranking 2009 | W5: Brokerage Fees2010 (RM) | Y5: Ranking 2010 | Z5: Brokerage Fees 2011 (RM) | AB5: Ranking2011 | AC5: Brokerage Fees 2012 (RM) | AE5: Ranking2012 | AF5: Brokerage Fees 2013 (RM) | AH5: Ranking2013 | AI5: Jan | AJ5: Feb | AK5: Mar | AL5: Apr | AM5: May | AN5: June | AO5: July | AP5: Aug | AQ5: Sept | AR5: Oct | AS5: Nov | AT5: Dec | AU5: ="Brokerage Fees " & YEAR(ValueDate) & " (RM)" -> Brokerage Fees 2017 (RM) | AW5: Rank
C6: % | D6: Ranking | E6: Brokerage Fees | F6: % | G6: Ranking | H6: Brokerage Fees | I6: % | J6: Ranking | K6: Brokerage Fees | L6: % | M6: Ranking | N6: Brokerage Fees | O6: % | P6: Ranking | R6: % | U6: % | X6: % | AA6: % | AD6: % | AG6: % | AV6: %
B7: 2003 (RM) | C7: 2003 | D7: 2003 | E7: 2004 (RM) | F7: 2004 | G7: 2004 | H7: 2005 (RM) | I7: 2005 | J7: 2005 | K7: 2006 (RM) | L7: 2006 | M7: 2006 | N7: 2007 (RM) | O7: 2007 | P7: 2007 | R7: 2008 | U7: 2009 | X7: 2010 | AA7: 2011 | AD7: 2012 | AG7: 2013 | AL7: Apr | AM7: May | AO7: July | AP7: Aug | AS7: Nov | AT7: Dec | AV7: =YEAR(ValueDate) -> 2017
A8: Affin Hwang Investment Bank Berhad | B8: 0 | C8: =+(B8/B$27) -> 0 | D8: 23 | E8: 1241230.89 | F8: =+(E8/E$27) -> 0.3049569352 | G8: 3 | H8: 675563.81 | I8: =+(H8/H$27) -> 0.2589307691 | J8: 4 | K8: 717867.39 | L8: =+(K8/K$27) -> 0.321591252 | M8: 4 | N8: 1362082.84 | O8: =+(N8/N$27) -> 0.2322373305 | P8: 4 | Q8: 1291464.38 | R8: =+(Q8/Q$27) -> 0.2540527758 | S8: 1 | T8: 1916928.76 | U8: =+(T8/T$27) -> 0.2336664264 | V8: 3 | W8: 1800853 | X8: =+(W8/W$27) -> 0.1782208809 | Y8: 1 | Z8: 2959043.52 | AA8: =+(Z8/Z$27) -> 0.0891118528 | AB8: 1 | AC8: 1341241.2 | AD8: 0.07519561042 | AE8: 1 | AF8: 1066023.41 | AG8: 0.07416551604 | AH8: 1 | AU8: =SUM(AI8:AT8) -> 0 | AV8: =+(AU8/AU$27) ->  | AW8: 1
A9: Alliance Investment Bank Berhad | AC9: 522854.69 | AD9: 0.02931342817 | AE9: 18 | AF9: 1054950.52 | AG9: 0.07339515154 | AH9: 2 | AU9: =SUM(AI9:AT9) -> 0 | AV9: =+(AU9/AU$27) ->  | AW9: 2
A10: AmInvestment Bank Berhad | B10: 2272904.25 | C10: =+(B10/B$27) -> 0.5411223583 | D10: 1 | E10: 1629189.41 | F10: =+(E10/E$27) -> 0.4002741257 | G10: 1 | H10: 1002804.86 | I10: =+(H10/H$27) -> 0.3843560443 | J10: 1 | K10: 850158.9 | L10: =+(K10/K$27) -> 0.3808553904 | M10: 2 | N10: 1795767.82 | O10: =+(N10/N$27) -> 0.3061813221 | P10: 1 | Q10: 1231643.18 | R10: =+(Q10/Q$27) -> 0.2422849391 | S10: 2 | T10: 2008438.59 | U10: =+(T10/T$27) -> 0.2448211315 | V10: 1 | W10: 1735578.11 | X10: =+(W10/W$27) -> 0.1717609709 | Y10: 3 | Z10: 2552584.89 | AA10: =+(Z10/Z$27) -> 0.07687131583 | AB10: 3 | AC10: 1181854.44 | AD10: 0.06625971976 | AE10: 3 | AF10: 893769.87 | AG10: 0.06218147089 | AH10: 3 | AU10: 0 | AW10: 3
A11: BIMB Securities Sdn Bhd | B11: 334861.99 | C11: =+(B11/B$27) -> 0.0797223683 | D11: 15 | E11: 82936.58 | F11: =+(E11/E$27) -> 0.02037661603 | G11: 13 | H11: 324365.31 | I11: =+(H11/H$27) -> 0.1243230587 | J11: 8 | K11: 239873.27 | L11: =+(K11/K$27) -> 0.1074587679 | M11: 10 | N11: 946226.75 | O11: =+(N11/N$27) -> 0.1613331936 | P11: 6 | Q11: 924441.44 | R11: =+(Q11/Q$27) -> 0.1818531874 | S11: 6 | T11: 1194052.59 | U11: =+(T11/T$27) -> 0.1455505324 | V11: 8 | W11: 1301720.53 | X11: =+(W11/W$27) -> 0.1288243847 | Y11: 6 | Z11: 2294515.5 | AA11: 0.06909953372 | AB11: 6 | AC11: 1120150.78 | AD11: 0.06280035363 | AE11: 6 | AF11: 880798.77 | AG11: 0.06127904387 | AH11: 4 | AU11: 0 | AW11: 4
A12: CIMB Investment Bank Berhad | B12: 0 | C12: =+(B12/B$27) -> 0 | D12: - | E12: 0 | F12: =+(E12/E$27) -> 0 | G12: - | H12: 0 | I12: =+(H12/H$27) -> 0 | J12: - | K12: 139996.07 | L12: =+(K12/K$27) -> 0.0627156381 | M12: 13 | N12: 279388.46 | O12: =+(N12/N$27) -> 0.04763618498 | P12: 14 | Q12: 185822.89 | R12: =+(Q12/Q$27) -> 0.03655448942 | S12: 14 | T12: 526671.81 | U12: =+(T12/T$27) -> 0.06419931836 | V12: 14 | W12: 538313.08 | X12: =+(W12/W$27) -> 0.05327399368 | Y12: 13 | Z12: 1424541.01 | AA12: 0.04290017634 | AB12: 13 | AC12: 743668.99 | AD12: 0.04169320451 | AE12: 12 | AF12: 860947.79 | AG12: 0.05989796897 | AH12: 5 | AU12: 0 | AW12: 5
A13: Credit Suisse Securities (M) Sdn Bhd | B13: 0 | C13: =+(B13/B$27) -> 0 | D13: - | E13: 0 | F13: =+(E13/E$27) -> 0 | G13: - | H13: 0 | I13: =+(H13/H$27) -> 0 | J13: - | K13: 116689.19 | L13: =+(K13/K$27) -> 0.05227458892 | M13: 14 | N13: 586663.04 | O13: =+(N13/N$27) -> 0.1000269986 | P13: 11 | Q13: 562455.89 | R13: =+(Q13/Q$27) -> 0.1106445384 | S13: 9 | T13: 921050.21 | U13: =+(T13/T$27) -> 0.1122725662 | V13: 10 | W13: 1158218.76 | X13: =+(W13/W$27) -> 0.1146227747 | Y13: 9 | Z13: 1778182.29 | AA13: 0.05355011422 | AB13: 9 | AC13: 921696.98 | AD13: 0.05167420076 | AE13: 9 | AF13: 786668.16 | AG13: 0.05473017712 | AH13: 6 | AU13: 0 | AW13: 6
A14: Hong Leong Investment Bank Berhad | B14: 0 | C14: =+(B14/B$27) -> 0 | E14: 0 | F14: =+(E14/E$27) -> 0 | H14: 0 | I14: =+(H14/H$27) -> 0 | K14: 0 | L14: =+(K14/K$27) -> 0 | N14: 0 | O14: =+(N14/N$27) -> 0 | Z14: 234822.61 | AA14: 0.007071703311 | AB14: 20 | AC14: 686053.06 | AD14: 0.03846301368 | AE14: 13 | AF14: 773757.82 | AG14: 0.05383197731 | AH14: 7 | AU14: 0 | AW14: 7
A15: JP Morgan Securities (M) Sdn Bhd | Z15: 101353.16 | AA15: 0.003052259223 | AB15: 21 | AC15: 285481.37 | AD15: 0.01600528367 | AE15: 21 | AF15: 754375.32 | AG15: 0.05248349555 | AH15: 8 | AU15: 0 | AW15: 8
A16: KAF-Seagroatt & Campbell Securities Sdn Bhd | B16: 0 | C16: =+(B16/B$27) -> 0 | D16: 20 | E16: 0 | F16: =+(E16/E$27) -> 0 | G16: 23 | H16: 0 | I16: =+(H16/H$27) -> 0 | J16: - | K16: 0 | L16: =+(K16/K$27) -> 0 | M16: - | N16: 0 | O16: =+(N16/N$27) -> 0 | P16: 0 | Q16: 0 | R16: =+(Q16/Q$27) -> 0 | S16: 0 | U16: =+(T16/T$27) -> 0 | V16: - | W16: 859416.12 | X16: =+(W16/W$27) -> 0.08505186042 | Y16: 11 | Z16: 1553960.64 | AA16: 0.04679765974 | AB16: 11 | AC16: 777456.7 | AD16: 0.04358748533 | AE16: 11 | AF16: 718862.18 | AG16: 0.05001277087 | AH16: 9 | AU16: 0 | AW16: 9
A17: Kenanga Investment Bank Berhad | C17: 0 | F17: 0 | I17: 0 | L17: =+(K17/K$27) -> 0 | O17: =+(N17/N$27) -> 0 | R17: =+(Q17/Q$27) -> 0 | U17: =+(T17/T$27) -> 0 | X17: =+(W17/W$27) -> 0 | AA17: 0 | AC17: 583743.76 | AD17: 0.03272712497 | AE17: 16 | AF17: 665559.71 | AG17: 0.04630440466 | AH17: 10 | AU17: 0 | AW17: 10
A18: Macquarie Capital Securities (Malaysia) Sdn Bhd | B18: 0 | C18: 0 | D18: 20 | E18: 0 | F18: 0 | G18: 23 | H18: 0 | I18: 0 | J18: - | K18: 0 | L18: =+(K18/K$27) -> 0 | M18: - | N18: 0 | O18: =+(N18/N$27) -> 0 | P18: 0 | Q18: 0 | R18: =+(Q18/Q$27) -> 0 | S18: 0 | U18: =+(T18/T$27) -> 0 | V18: - | W18: 365789.58 | X18: =+(W18/W$27) -> 0.03620025687 | Y18: 16 | Z18: 913461.57 | AA18: 0.02750897458 | AB18: 17 | AC18: 382880.81 | AD18: 0.02146590503 | AE18: 20 | AF18: 587679.52 | AG18: 0.04088611419 | AH18: 11 | AU18: 0 | AW18: 11
A19: Maybank Invesment Bank Berhad | B19: 0 | C19: 0 | E19: 0 | F19: 0 | G19: - | H19: 0 | I19: 0 | J19: - | K19: 0 | L19: =+(K19/K$27) -> 0 | M19: 0 | N19: 376117.41 | O19: =+(N19/N$27) -> 0.06412862764 | P19: 13 | Q19: 502513.79 | R19: =+(Q19/Q$27) -> 0.0988529186 | S19: 10 | T19: 782487.61 | U19: =+(T19/T$27) -> 0.09538230494 | V19: 11 | W19: 975873.32 | X19: =+(W19/W$27) -> 0.09657701254 | Y19: 10 | Z19: 1229204.82 | AA19: 0.03701761 | AB19: 14 | AC19: 603355.18 | AD19: 0.03382662347 | AE19: 15 | AF19: 582784.53 | AG19: 0.04054555932 | AH19: 12 | AU19: 0 | AW19: 12
A20: MIDF Amanah Investment Bank Berhad | B20: 962471.83 | C20: 0.2291407684 | D20: 6 | E20: 808280.28 | F20: 0.1985856773 | G20: 6 | H20: 287378.95 | I20: 0.1101468898 | AF20: 574767.34 | AG20: 0.03998778636 | AH20: 13 | AU20: 0 | AV20: =+(AU20/AU$27) ->  | AW20: 13
A21: Nomura Securities Sdn Bhd | B21: 0 | C21: 0 | D21: 16 | E21: 0 | F21: 0 | G21: 19 | H21: 0 | I21: 0 | J21: - | K21: 0 | L21: =+(K21/K$27) -> 0 | M21: - | N21: 0 | O21: =+(N21/N$27) -> 0 | P21: 0 | Q21: 0 | R21: =+(Q21/Q$27) -> 0 | S21: 0 | U21: =+(T21/T$27) -> 0 | V21: - | W21: 0 | X21: =+(W21/W$27) -> 0 | Y21: 19 | Z21: 0 | AA21: =+(Z21/Z$27) -> 0 | AB21: 15 | AC21: 668780.47 | AD21: 0.0374946398 | AE21: 14 | AF21: 549036.77 | AG21: 0.03819765588 | AH21: 14 | AU21: 0 | AW21: 14
A22: Public Investment Bank Berhad | AF22: 476528.99 | AG22: 0.0331531354 | AH22: 15 | AU22: 0 | AW22: 15
A23: RHB Investment Bank Berhad | B23: 0 | C23: =+(B23/B$27) -> 0 | D23: - | E23: 0 | F23: =+(E23/E$27) -> 0 | G23: - | H23: 0 | I23: =+(H23/H$27) -> 0 | J23: - | K23: 0 | L23: =+(K23/K$27) -> 0 | M23: - | N23: 0 | O23: =+(N23/N$27) -> 0 | P23: - | Q23: 0 | R23: =+(Q23/Q$27) -> 0 | S23: - | T23: 188723.27 | U23: =+(T23/T$27) -> 0.02300465881 | V23: 16 | W23: 532788.75 | X23: =+(W23/W$27) -> 0.05272728 | Y23: 14 | Z23: 709240.65 | AA23: =+(Z23/Z$27) -> 0.02135884382 | AB23: 18 | AC23: 399844.81 | AD23: 0.02241697807 | AE23: 19 | AF23: 475129.94 | AG23: 0.03305580052 | AH23: 16 | AU23: 0 | AW23: 16
A24: TA Securities Holdings Sdn Bhd | AF24: 473534.2 | AG24: 0.03294478149 | AH24: 17 | AU24: 0 | AW24: 17
A25: UBS Securities (M) Sdn Bhd | B25: 630113.69 | C25: =+(B25/B$27) -> 0.150014505 | D25: 10 | E25: 308547.01 | F25: =+(E25/E$27) -> 0.07580664587 | G25: 8 | H25: 318938.95 | I25: =+(H25/H$27) -> 0.122243238 | J25: 9 | K25: 167650.62 | L25: =+(K25/K$27) -> 0.07510436265 | M25: 11 | N25: 518800.6 | O25: =+(N25/N$27) -> 0.08845634265 | P25: 12 | Q25: 385107.63 | R25: =+(Q25/Q$27) -> 0.07575715127 | S25: 12 | T25: 665345.01 | U25: =+(T25/T$27) -> 0.08110306135 | V25: 12 | W25: 836061.58 | X25: =+(W25/W$27) -> 0.08274058532 | Y25: 12 | Z25: 1427134.36 | AA25: =+(Z25/Z$27) -> 0.0429782753 | AB25: 12 | AC25: 898575.99 | AD25: 0.05037794103 | AE25: 10 | AF25: 345234.5 | AG25: 0.02401869847 | AH25: 18 | AU25: 0 | AW25: 18
A27: GRAND TOTAL | B27: =SUM(B8:B25) -> 4200351.76 | C27: =SUM(C8:C25) -> 1 | E27: =SUM(E8:E25) -> 4070184.17 | F27: =SUM(F8:F25) -> 1 | H27: =SUM(H8:H25) -> 2609051.88 | I27: =SUM(I8:I25) -> 1 | J27: - | K27: =SUM(K8:K25) -> 2232235.44 | L27: =SUM(L8:L25) -> 1 | M27: - | N27: =SUM(N8:N25) -> 5865046.92 | O27: =SUM(O8:O25) -> 1 | Q27: =SUM(Q8:Q25) -> 5083449.2 | R27: =SUM(R8:R25) -> 1 | T27: =SUM(T8:T25) -> 8203697.85 | U27: =SUM(U8:U25) -> 1 | V27: - | W27: =SUM(W8:W25) -> 10104612.83 | X27: =SUM(X8:X25) -> 1 | Y27: - | Z27: 33205947.66 | AA27: =SUM(AA8:AA25) -> 0.5173183189 | AB27: - | AC27: =SUM(AC8:AC25) -> 11117639.23 | AD27: =SUM(AD8:AD25) -> 0.6233015123 | AI27: =SUM(AI8:AI25) -> 0 | AJ27: 0 | AK27: 0 | AL27: 0 | AM27: 0 | AN27: 0 | AO27: 0 | AP27: 0 | AQ27: 0 | AR27: 0 | AS27: 0 | AT27: 0 | AU27: 0 | AV27: =SUM(AV8:AV25) -> 
A30: Prepared by :
A32: Verified by :
A34: Confirmed by :

Sheet Reference (hidden)
A1: Fund Code | C1: Font Name | D1: Font Size
A2: KHAZANAH | C2: Calibri | D2: 24
A3: KWAP
A4: MEQESG
A5: YAMIR-VCAM
